{"text_format":"1","workbook":"xlsx","n_sheets":9,"sheets":["Menu","Entrée des revenus et dépenses","Outil d'analyse financière","Planificateur des finances","Définitions","CommodityList","Sheet1","Benchmarks","BenchmarksLookup"],"not_rendered":{"charts":0,"images":2,"macros":1,"external_links":0,"defined_names":8,"comments":6,"pivot_tables":0},"unopened":[],"bounds":{"document_bytes":16777216,"sheet_cells":100000,"rows_first":2000,"rows_last":500,"rows_between":2000,"halvings":0,"cell_chars":16384,"cell_head_chars":4096},"cells_cut":0,"cells_raw":0,"read":"whole","date_system":"1900"}

{"sheet":"Menu","index":0,"n_rows":25,"n_cols":1,"rows_kept":25,"cut":false,"hidden":false,"merged":[]}
["Ceci est une calculatrice d'aide aux décisions d'affaire à la ferme qui comporte 5 feuilles de travail. Certains champs doivent être remplis par l'utilisateur. Elle peut avoir 10 colonnes de largeur et 125 rangées."]
["Bienvenue à la page Menu de l’Outil d'analyse financière pour les entreprises agricoles"]
[]
[]
[]
[]
[]
[]
[]
[]
[]
[]
[]
[]
["L’Outil d'analyse financière pour les entreprises agricoles du MAAAO est un programme d’analyse des entreprises agricoles conçu pour évaluer la rentabilité et la performance financière. Il vous permet d’entrer des renseignements financiers provenant de votre déclaration de revenus dont il se sert par la suite pour analyser la performance de votre exploitation. Il est possible de comparer les renseignements propres à votre entreprise agricole aux renseignements de référence obtenus d’autres exploitations agricoles ayant participé aux programmes ontariens de gestion des risques des entreprises. La section du planificateur des finances des entreprises agricoles vous présente les résultats découlant de variations des revenus et des dépenses."]
["Les nombres et le texte en bleu dans les cellules dont l’arrière-plan est jaune peuvent être modifiés pour chaque producteur."]
["Plusieurs cellules comportent un triangle rouge dans leur coin supérieur droit. En plaçant le curseur de votre souris sur ce triangle, vous affichez une courte description des données à saisir dans la cellule en question."]
[]
["Conçu par John Molenhuis"]
["chargé de programme, analyse des activités commerciales et des coûts de production"]
["MAAARO, Brighton"]
["Courriel: john.molenhuis@ontario.ca"]
["octobre 2024"]
[]
["fin de la feuille de calcul"]

{"sheet":"Entrée des revenus et dépenses","index":1,"n_rows":122,"n_cols":23,"rows_kept":122,"cut":false,"hidden":false,"merged":[]}
["Ceci est une calculatrice d'aide aux décisions d'affaire à la ferme qui comporte 5 feuilles de travail. Certains champs doivent être remplis par l'utilisateur. Elle peut avoir 10 colonnes de largeur et 125 rangées."]
[null,"T1163, État A, État des résultats des activités d'une entreprise agricole","année:",2023]
[null,"Nom de l'entreprise"]
[null,"Revenu",null,null,null,null,"Sélectionnez votre type de ferme :"]
[null,"Ventes de produits","Code","Montant","% alloué au type de ferme",null,"Parc d’engraissement de bovins de boucherie"]
[null,null,{"$f":"CommodityList!A6","v":""},50,1,null,{"$f":"D6*E6","v":50},null,null,null,null,null,null,null,null,null,null,null,null,null,null,null,"Pomiculture"]
[null,null,{"$f":"CommodityList!A7","v":""},null,1,null,0,null,null,null,null,null,null,null,null,null,null,null,null,null,null,null,"Raisin"]
[null,null,{"$f":"CommodityList!A8","v":""},null,1,null,0,null,null,null,null,null,null,null,null,null,null,null,null,null,null,null,"Bovins de boucherie - Vache-veau"]
[null,null,{"$f":"CommodityList!A9","v":""},null,1,null,0,null,null,null,null,null,null,null,null,null,null,null,null,null,null,null,"Parc d’engraissement de bovins de boucherie"]
[null,null,{"$f":"CommodityList!A10","v":""},null,1,null,0,null,null,null,null,null,null,null,null,null,null,null,null,null,null,null,"élevage de chèvres laitières"]
[null,null,{"$f":"CommodityList!A11","v":""},null,1,null,0,null,null,null,null,null,null,null,null,null,null,null,null,null,null,null,"Cultures de grande production"]
[null,null,{"$f":"CommodityList!A12","v":""},null,1,null,0,null,null,null,null,null,null,null,null,null,null,null,null,null,null,null,"Concombres de serre"]
[null,null,{"$f":"CommodityList!A13","v":""},null,1,null,0,null,null,null,null,null,null,null,null,null,null,null,null,null,null,null,"Floriculture en serre"]
[null,null,{"$f":"CommodityList!A14","v":""},null,1,null,0,null,null,null,null,null,null,null,null,null,null,null,null,null,null,null,"Culture en serre de poivrons et piments"]
[null,null,{"$f":"CommodityList!A15","v":""},null,1,null,0,null,null,null,null,null,null,null,null,null,null,null,null,null,null,null,"Culture de tomates en serre"]
[null,null,{"$f":"CommodityList!A16","v":""},null,1,null,0,null,null,null,null,null,null,null,null,null,null,null,null,null,null,null,"Ovins"]
[null,null,{"$f":"CommodityList!A17","v":""},null,1,null,0,null,null,null,null,null,null,null,null,null,null,null,null,null,null,null,"Porcs du naissage à la finition"]
[null,null,{"$f":"CommodityList!A18","v":""},null,1,null,0,null,null,null,null,null,null,null,null,null,null,null,null,null,null,null,"Finition de porcs"]
[null,null,{"$f":"CommodityList!A19","v":""},null,1,null,0]
[null,null,{"$f":"CommodityList!A20","v":""},null,1,null,0]
[null,null,{"$f":"CommodityList!A21","v":""},null,1,null,0]
[null,null,{"$f":"CommodityList!A22","v":""},null,1,null,0]
[null,null,{"$f":"CommodityList!A23","v":""},null,1,null,0]
[null,null,{"$f":"CommodityList!A24","v":""},null,1,null,0]
[null,null,{"$f":"CommodityList!A25","v":""},null,1,null,0]
[null,"Paiments de Agri-protection"]
[null,"Agri-protection (assurance-production, assurance-récolte) – Autres produits (y compris le bétail)",463,null,1,null,{"$f":"D27*E27","v":0}]
[null,"Agri-protection (assurance-production, assurance-récolte) – Céréales, oléagineux et cultures spéciales",401,null,1,null,{"$f":"D28*E28","v":0}]
[null,"Agri-protection (assurance-production, assurance-récolte) – Cultures horticoles comestibles",402,null,1,null,{"$f":"D29*E29","v":0}]
[null,"Agri-protection (assurance-production, assurance-récolte) – Cultures horticoles non comestibles",470,null,1,null,{"$f":"D30*E30","v":0}]
[null,"Paiments de programmes pour la liste A et B, Guide du revenu d'agriculture "]
[null,null,{"$f":"CommodityList!A32","v":""},null,1,null,{"$f":"D32*E32","v":0}]
[null,null,{"$f":"CommodityList!A33","v":""},null,1,null,0]
[null,null,{"$f":"CommodityList!A34","v":""},null,1,null,0]
[null,null,{"$f":"CommodityList!A35","v":""},null,1,null,0]
[null,null,{"$f":"CommodityList!A36","v":""},null,1,null,0]
[null,"Autres paiements provenant de programmes",9540,null,1,null,0]
[null,"Gestion des risques de l'entreprise (GRE) et programme d'aide en cas de catastrophe",9544,null,1,null,0]
[null,"Reventes, remises, TPS/TVH pour dépenses admissibles",9574,null,1,null,0]
[null,"Reventes, remises, TPS/TVH pour dépenses non admissibles et récupération de la déduction pour amortissement (DPA)",9575,null,1,null,0]
[null,"Travail agricole à contrat",9601,null,0,null,0]
[null,"Ristournes",9605,null,1,null,0]
[null,"Intérêts",9607,null,1,null,0]
[null,"Gravier",9610,null,1,null,0]
[null,"Camionnage (lié à l'agriculture seulement)",9611,null,1,null,0]
[null,"Reventes de produits achetés",9612,null,1,null,0]
[null,"Contrat-location (gaz, puits de pétrole, baux de surface, etc.)",9613,null,1,null,0]
[null,"Louage de machinerie",9614,null,1,null,0]
[null,"Autres (précisez)",9600,null,1,null,0]
[null,"Revenu agricole brut",null,{"$f":"SUM(D6:D49)","v":50},null,null,{"$f":"SUM(G6:G49)","v":50}]
[]
[null,"Dépenses (inscrivez la \"partie affaires\" seulement)"]
[null,"Remboursements non admissibles de paiements provenant de programmes - récoltes","Code","Amount"]
[null,null,{"$f":"CommodityList!A51","v":""},null,1,null,{"$f":"D54*E54","v":0},null,null,null,null,null,null,null,null,null,null,null,{"$f":"SUMIFS(G54:G71,C54:C71,366)","v":0}]
[null,null,{"$f":"CommodityList!A52","v":""},null,0,null,0]
[null,null,{"$f":"CommodityList!A53","v":""},null,1,null,0]
[null,null,{"$f":"CommodityList!A54","v":""},null,1,null,0]
[null,null,{"$f":"CommodityList!A55","v":""},null,1,null,0]
[null,null,{"$f":"CommodityList!A56","v":""},null,1,null,0]
[null,null,{"$f":"CommodityList!A57","v":""},null,1,null,0]
[null,null,{"$f":"CommodityList!A58","v":""},null,1,null,0]
[null,null,{"$f":"CommodityList!A59","v":""},null,1,null,0]
[null,"Remboursements non admissibles de paiements provenant de programmes - récoltes"]
[null,null,{"$f":"CommodityList!A61","v":""},null,1,null,0]
[null,null,{"$f":"CommodityList!A62","v":""},null,1,null,0]
[null,null,{"$f":"CommodityList!A63","v":""},null,1,null,0]
[null,null,{"$f":"CommodityList!A64","v":""},null,1,null,0]
[null,null,{"$f":"CommodityList!A65","v":""},null,1,null,0]
[null,null,{"$f":"CommodityList!A66","v":""},null,1,null,0]
[null,null,{"$f":"CommodityList!A67","v":""},null,1,null,0]
[null,null,{"$f":"CommodityList!A68","v":""},null,1,null,0]
[null,"Contenants et ficelles",9661,null,1,null,0]
[null,"Engrais et suppléments pour le sol",9662,null,1,null,0]
[null,"Pesticides et produits chimiques",9663,null,1,null,0]
[null,"Primes d'assurance (récolte ou production)",9665,null,1,null,0]
[null,"Honoraires de vétérinaire, médicaments et honoraires de droits de monte",9713,null,1,null,0]
[null,"Minéraux et sel",9714,null,1,null,0]
[null,"Machinerie (essence, carburant diesel, huile)",9764,null,1,null,0]
[null,"Électricité",9799,null,1,null,0]
[null,"Transport et envoi",9801,null,1,null,0]
[null,"Huile de chauffage",9802,null,1,null,0]
[null,"Salaires versés à des personnes sans lien de dépendance",9815,null,1,null,0]
[null,"Entreposage et séchage",9822,null,1,null,0]
[null,"Commissions et redevances",9836,null,1,null,0]
[null,"Prime d'assurance privée pour produits admissibles",9953,null,1,null,0]
[null,"Machinerie (réparations, permis, assurances)",9760,null,1,null,{"$f":"D86*E86","v":0}]
[null,"Contrat-location de machinerie",9765,null,1,null,0]
[null,"Frais de publicité et de promotion",9792,null,1,null,0]
[null,"Réparations de bâtiments ou de clôtures",9795,null,1,null,0]
[null,"Défrichage et drainage de terrains",9796,null,1,null,0]
[null,"Travail agricole à contrat",9798,null,1,null,0]
[null,"Autres primes d'assurances",9804,null,1,null,0]
[null,"Intérêts (hypothèque, immobilier et autres)",9805,null,1,null,0]
[null,"Cotisations de membre et abonnements",9807,null,1,null,0]
[null,"Frais de bureau",9808,null,1,null,0]
[null,"Frais comptables et juridiques",9809,null,1,null,0]
[null,"Impôts fonciers",9810,null,1,null,0]
[null,"Loyer (terrains, bâtiments, pâturages)",9811,null,1,null,0]
[null,"Salaires versés à des personnes avec lien de dépendance",9816,null,1,null,0]
[null,"Dépenses relatives aux véhicules à moteur",9819,null,1,null,0]
[null,"Petits outils",9820,null,1,null,0]
[null,"Analyse des sols",9821,null,1,null,0]
[null,"Licences et permis",9823,null,1,null,0]
[null,"Téléphone",9824,null,1,null,0]
[null,"Location de contingents (tabac, lait)",9825,null,1,null,0]
[null,"Gravier",9826,null,1,null,0]
[null,"Achats de produits revendus",9827,null,1,null,0]
[null,"Intérêts et frais de location d'un véhicule à moteur",9829,null,1,null,0]
[null,"Déduction pour amortissement",9936,null,1,null,0]
[null,"Autres (précisez) :",9896,null,1,null,0]
[null,"Total des dépenses agricoles",null,{"$f":"SUM(D54:D110)","v":0},null,null,{"$f":"SUM(G54:G110)","v":0}]
[null,"Revenu net avant rajustements",null,{"$f":"D50-D111","v":50},null,null,{"$f":"G50-G111","v":50}]
[]
[null,"Variation de l’inventaire (selon le formulaire de déclaration de fin d’exercice et de demande de paiement d’Agri-stabilité)",null,null,1,null,{"$f":"D114*E114","v":0}]
[null,"Variation des comptes clients (selon le formulaire de déclaration de fin d’exercice et de demande de paiement d’Agri-stabilité)",null,null,1,null,{"$f":"D115*E115","v":0}]
[null,"Variation des comptes fournisseurs (selon le formulaire de déclaration de fin d’exercice et de demande de paiement d’Agri-stabilité)",null,null,1,null,{"$f":"D116*E116","v":0}]
[null,"Variation des intrants achetés (selon le formulaire de déclaration de fin d’exercice et de demande de paiement d’Agri-stabilité)",null,null,1,null,{"$f":"D117*E117","v":0}]
[]
[]
[]
[]
["fin de la feuille de calcul"]

{"sheet":"Outil d'analyse financière","index":2,"n_rows":36,"n_cols":29,"rows_kept":36,"cut":false,"hidden":false,"merged":[]}
["Ceci est une calculatrice d'aide aux décisions d'affaire à la ferme qui comporte 5 feuilles de travail. Certains champs doivent être remplis par l'utilisateur. Elle peut avoir 10 colonnes de largeur et 125 rangées."]
["Outil d'analyse financière pour les entreprises agricoles"]
[null,null,null,null,"Sélectionnez le type de ferme aux fins de comparaison :"]
[null,null,null,null,"Parc d’engraissement de bovins de boucherie"]
[{"$f":"'Entrée des revenus et dépenses'!B3","v":"Nom de l'entreprise"},null,{"$f":"'Entrée des revenus et dépenses'!D2","v":2023},null,"Comparaison aux renseignements de référence",null,null,null,null,null,null,null,null,null,null,null,null,null,null,null,null,null,"Farm types",null,null,null,null,{"$f":"E4","v":"Parc d’engraissement de bovins de boucherie"}]
[null,null,"Votre ferme","Votre ferme",{"$f":"E4","v":"Parc d’engraissement de bovins de boucherie"},null,null,null,null,null,null,null,null,null,null,null,null,null,null,null,null,null,"Pomiculture"]
[null,null,{"$f":"IF('Entrée des revenus et dépenses'!G5=0,\"\",'Entrée des revenus et dépenses'!G5)","v":"Parc d’engraissement de bovins de boucherie"},null,"Toutes","Principales",null,null,null,null,null,null,null,null,null,null,null,null,null,null,null,null,"Raisin"]
[null,"Mesures financières","Total $","$ de revenu des activités agricoles",null,null,null,null,null,null,null,null,null,null,null,null,null,null,null,null,null,null,"Bovins de boucherie - Vache-veau",null,null,null,null,"All","Top"]
["$","Revenus des activités agricoles",{"$f":"SUM('Entrée des revenus et dépenses'!G6:G30,'Entrée des revenus et dépenses'!G114,'Entrée des revenus et dépenses'!G115)","v":50},{"$f":"IFERROR(C9/$C$9,\"\")","v":1},{"$f":"IFERROR(AB9,\"\")","v":""},{"$f":"IFERROR(AC9,\"\")","v":""},null,null,null,null,null,null,null,null,null,null,null,null,null,null,null,null,"Parc d’engraissement de bovins de boucherie",null,null,null,"Revenue from farming operations",{"$f":"HLOOKUP($AB$5,BenchmarksLookup!$C$6:$O$32,5,FALSE)","v":{"$error":"#N/A"}},{"$f":"HLOOKUP($AB$5,topbench,5,FALSE)","v":{"$error":"#N/A"}}]
["$","Coûts des produits vendus",{"$f":"SUM('Entrée des revenus et dépenses'!G54:G71,'Entrée des revenus et dépenses'!G73,'Entrée des revenus et dépenses'!G74,'Entrée des revenus et dépenses'!G75,'Entrée des revenus et dépenses'!G76,'Entrée des revenus et dépenses'!G77,'Entrée des revenus et dépenses'!G84,'Entrée des revenus et dépenses'!G85,'Entrée des revenus et dépenses'!G116)-'Entrée des revenus et dépenses'!G117","v":0},{"$f":"IFERROR(C10/$C$9,\"\")","v":0},{"$f":"IFERROR(AB10,\"\")","v":""},"",null,null,null,null,null,null,null,null,null,null,null,null,null,null,null,null,"élevage de chèvres laitières",null,null,null,"Cost of goods sold",{"$f":"HLOOKUP($AB$5,BenchmarksLookup!$C$6:$O$32,6,FALSE)","v":{"$error":"#N/A"}},{"$f":"HLOOKUP($AB$5,topbench,6,FALSE)","v":{"$error":"#N/A"}}]
["$","Marge brute",{"$f":"C9-C10","v":50},1,"","",null,null,null,null,null,null,null,null,null,null,null,null,null,null,null,null,"Cultures de grande production",null,null,null,"Gross Margin",{"$f":"HLOOKUP($AB$5,BenchmarksLookup!$C$6:$O$32,7,FALSE)","v":{"$error":"#N/A"}},{"$f":"HLOOKUP($AB$5,topbench,7,FALSE)","v":{"$error":"#N/A"}}]
["$","Charges d’exploitation directes",{"$f":"SUM('Entrée des revenus et dépenses'!G78,'Entrée des revenus et dépenses'!G82,'Entrée des revenus et dépenses'!G99,'Entrée des revenus et dépenses'!G82,'Entrée des revenus et dépenses'!G72,'Entrée des revenus et dépenses'!G86,'Entrée des revenus et dépenses'!G91,'Entrée des revenus et dépenses'!G101,'Entrée des revenus et dépenses'!G89,'Entrée des revenus et dépenses'!G102,'Entrée des revenus et dépenses'!G80,'Entrée des revenus et dépenses'!G100,'Entrée des revenus et dépenses'!G79,'Entrée des revenus et dépenses'!G81,'Entrée des revenus et dépenses'!G107)","v":0},0,"","",null,null,null,null,null,null,null,null,null,null,null,null,null,null,null,null,"Concombres de serre",null,null,null,"Direct Operating Expenses",{"$f":"HLOOKUP($AB$5,BenchmarksLookup!$C$6:$O$32,8,FALSE)","v":{"$error":"#N/A"}},{"$f":"HLOOKUP($AB$5,topbench,8,FALSE)","v":{"$error":"#N/A"}}]
["$","Bénéfice sectoriel",{"$f":"C11-C12","v":50},1,"","",null,null,null,null,null,null,null,null,null,null,null,null,null,null,null,null,"Floriculture en serre",null,null,null,"Contribution Margin",{"$f":"HLOOKUP($AB$5,BenchmarksLookup!$C$6:$O$32,9,FALSE)","v":{"$error":"#N/A"}},{"$f":"HLOOKUP($AB$5,topbench,9,FALSE)","v":{"$error":"#N/A"}}]
["$","Frais généraux d’exploitation",{"$f":"SUM('Entrée des revenus et dépenses'!G92,'Entrée des revenus et dépenses'!G88,'Entrée des revenus et dépenses'!G94,'Entrée des revenus et dépenses'!G95,'Entrée des revenus et dépenses'!G96,'Entrée des revenus et dépenses'!G103,'Entrée des revenus et dépenses'!G104,'Entrée des revenus et dépenses'!G110)","v":0},0,"","",null,null,null,null,null,null,null,null,null,null,null,null,null,null,null,null,"Culture en serre de poivrons et piments",null,null,null,"Operating Overhead Expenses",{"$f":"HLOOKUP($AB$5,BenchmarksLookup!$C$6:$O$32,10,FALSE)","v":{"$error":"#N/A"}},{"$f":"HLOOKUP($AB$5,topbench,10,FALSE)","v":{"$error":"#N/A"}}]
["$","BAIIALA ",{"$f":"C13-C14","v":50},1,"","",null,null,null,null,null,null,null,null,null,null,null,null,null,null,null,null,"Culture de tomates en serre",null,null,null,"EBITDAR ",{"$f":"HLOOKUP($AB$5,BenchmarksLookup!$C$6:$O$32,11,FALSE)","v":{"$error":"#N/A"}},{"$f":"HLOOKUP($AB$5,topbench,11,FALSE)","v":{"$error":"#N/A"}}]
["$","Coût annuel du capital",{"$f":"SUM('Entrée des revenus et dépenses'!G109,'Entrée des revenus et dépenses'!G105,'Entrée des revenus et dépenses'!G87,'Entrée des revenus et dépenses'!G108,'Entrée des revenus et dépenses'!G90,'Entrée des revenus et dépenses'!G97,'Entrée des revenus et dépenses'!G98)","v":0},0,"","",null,null,null,null,null,null,null,null,null,null,null,null,null,null,null,null,"Ovins",null,null,null,"Annual cost of capital (ACoC)",{"$f":"HLOOKUP($AB$5,BenchmarksLookup!$C$6:$O$32,12,FALSE)","v":{"$error":"#N/A"}},{"$f":"HLOOKUP($AB$5,topbench,12,FALSE)","v":{"$error":"#N/A"}}]
["$","BAII (bénéfice d’exploitation)",{"$f":"C15-C16","v":50},1,"","",null,null,null,null,null,null,null,null,null,null,null,null,null,null,null,null,"Porcs du naissage à la finition",null,null,null,"EBIT (Operating Profit)",{"$f":"HLOOKUP($AB$5,BenchmarksLookup!$C$6:$O$32,13,FALSE)","v":{"$error":"#N/A"}},{"$f":"HLOOKUP($AB$5,topbench,13,FALSE)","v":{"$error":"#N/A"}}]
["$","Intérêts débiteurs",{"$f":"'Entrée des revenus et dépenses'!G93","v":0},0,"","",null,null,null,null,null,null,null,null,null,null,null,null,null,null,null,null,"Finition de porcs",null,null,null,"Interest Expenses",{"$f":"HLOOKUP($AB$5,BenchmarksLookup!$C$6:$O$32,14,FALSE)","v":{"$error":"#N/A"}},{"$f":"HLOOKUP($AB$5,topbench,14,FALSE)","v":{"$error":"#N/A"}}]
["$","BAI (revenu agricole net)",{"$f":"C17-C18","v":50},1,"","",null,null,null,null,null,null,null,null,null,null,null,null,null,null,null,null,"Pas de référence",null,null,null,"EBT (Net Farm Income)",{"$f":"HLOOKUP($AB$5,BenchmarksLookup!$C$6:$O$32,15,FALSE)","v":{"$error":"#N/A"}},{"$f":"HLOOKUP($AB$5,topbench,15,FALSE)","v":{"$error":"#N/A"}}]
[null,"Ratios financiers ",null,null,null,null,null,null,null,null,null,null,null,null,null,null,null,null,null,null,null,null,null,null,null,null,"Financial Ratios "]
["ratio de couverture\ndes frais financiers","Couverture de l’intérêt",null,{"$f":"IFERROR(C17/C18,\"\")","v":""},{"$f":"IFERROR(AB21,\"\")","v":""},{"$f":"IFERROR(AC21,\"\")","v":""},null,null,null,null,null,null,null,null,null,null,null,null,null,null,null,null,null,null,null,null,"Interest Coverage",{"$f":"HLOOKUP($AB$5,BenchmarksLookup!$C$6:$O$32,17,FALSE)","v":{"$error":"#N/A"}},{"$f":"HLOOKUP($AB$5,topbench,17,FALSE)","v":{"$error":"#N/A"}}]
[null,null,null,"% de revenu des activités agricoles"]
["%","Ratio des intérêts débiteurs",null,{"$f":"IFERROR(C18/C9,\"\")","v":0},"","",null,null,null,null,null,null,null,null,null,null,null,null,null,null,null,null,null,null,null,null,"Interest Expense Ratio",{"$f":"HLOOKUP($AB$5,BenchmarksLookup!$C$6:$O$32,19,FALSE)","v":{"$error":"#N/A"}},{"$f":"HLOOKUP($AB$5,topbench,19,FALSE)","v":{"$error":"#N/A"}}]
["%","Ratio des charges d’exploitation",null,{"$f":"IFERROR(('Entrée des revenus et dépenses'!G111-'Entrée des revenus et dépenses'!G109)/'Outil d''analyse financière'!C9,\"\")","v":0},"","",null,null,null,null,null,null,null,null,null,null,null,null,null,null,null,null,null,null,null,null,"Operating Expense Ratio",{"$f":"HLOOKUP($AB$5,BenchmarksLookup!$C$6:$O$32,20,FALSE)","v":{"$error":"#N/A"}},{"$f":"HLOOKUP($AB$5,topbench,20,FALSE)","v":{"$error":"#N/A"}}]
["%","Ratio des dépenses énergétiques",null,{"$f":"IFERROR(('Entrée des revenus et dépenses'!G81+'Entrée des revenus et dépenses'!G79)/'Outil d''analyse financière'!C9,\"\")","v":0},"","",null,null,null,null,null,null,null,null,null,null,null,null,null,null,null,null,null,null,null,null,"Energy Expense Ratio",{"$f":"HLOOKUP($AB$5,BenchmarksLookup!$C$6:$O$32,21,FALSE)","v":{"$error":"#N/A"}},{"$f":"HLOOKUP($AB$5,topbench,21,FALSE)","v":{"$error":"#N/A"}}]
["%","Ratio des dépenses de main-d’œuvre",null,{"$f":"IFERROR(('Entrée des revenus et dépenses'!G82+'Entrée des revenus et dépenses'!G99)/'Outil d''analyse financière'!C9,\"\")","v":0},"","",null,null,null,null,null,null,null,null,null,null,null,null,null,null,null,null,null,null,null,null,"Labour Expense Ratio",{"$f":"HLOOKUP($AB$5,BenchmarksLookup!$C$6:$O$32,22,FALSE)","v":{"$error":"#N/A"}},{"$f":"HLOOKUP($AB$5,topbench,22,FALSE)","v":{"$error":"#N/A"}}]
["%","Ratio des charges d’exploitation des machines",null,{"$f":"IFERROR(('Entrée des revenus et dépenses'!G78+'Entrée des revenus et dépenses'!G86+'Entrée des revenus et dépenses'!G91+'Entrée des revenus et dépenses'!G87+'Entrée des revenus et dépenses'!G80)/'Outil d''analyse financière'!C9,\"\")","v":0},"","",null,null,null,null,null,null,null,null,null,null,null,null,null,null,null,null,null,null,null,null,"Machinery Operating Expense ratio",{"$f":"HLOOKUP($AB$5,BenchmarksLookup!$C$6:$O$32,23,FALSE)","v":{"$error":"#N/A"}},{"$f":"HLOOKUP($AB$5,topbench,23,FALSE)","v":{"$error":"#N/A"}}]
["Animaux d’élevage"]
["%","Ratio des dépenses totales pour les aliments pour animaux",null,{"$f":"IFERROR((SUM('Entrée des revenus et dépenses'!G54:G62)+'Entrée des revenus et dépenses'!G73+'Entrée des revenus et dépenses'!G74+'Entrée des revenus et dépenses'!G75+'Entrée des revenus et dépenses'!G77+'Entrée des revenus et dépenses'!G78+'Entrée des revenus et dépenses'!G86+'Entrée des revenus et dépenses'!G87+'Entrée des revenus et dépenses'!G91+'Entrée des revenus et dépenses'!G72+'Entrée des revenus et dépenses'!G83-'Entrée des revenus et dépenses'!G117)/'Outil d''analyse financière'!C9,\"\")","v":0},"","",null,null,null,null,null,null,null,null,null,null,null,null,null,null,null,null,null,null,null,null,"Feed expense ratio",{"$f":"HLOOKUP($AB$5,BenchmarksLookup!$C$6:$O$32,25,FALSE)","v":{"$error":"#N/A"}},{"$f":"HLOOKUP($AB$5,topbench,25,FALSE)","v":{"$error":"#N/A"}}]
["%","Ratio des achats de bétail",null,{"$f":"IFERROR(SUM('Entrée des revenus et dépenses'!G64:G71)/'Outil d''analyse financière'!C9,\"\")","v":0},"","",null,null,null,null,null,null,null,null,null,null,null,null,null,null,null,null,null,null,null,null,"Livestock purchases ratio",{"$f":"HLOOKUP($AB$5,BenchmarksLookup!$C$6:$O$32,26,FALSE)","v":{"$error":"#N/A"}},{"$f":"HLOOKUP($AB$5,topbench,26,FALSE)","v":{"$error":"#N/A"}}]
["%","Ratio des dépenses en santé",null,{"$f":"IFERROR('Entrée des revenus et dépenses'!G76/'Outil d''analyse financière'!C9,\"\")","v":0},"","",null,null,null,null,null,null,null,null,null,null,null,null,null,null,null,null,null,null,null,null,"Health expense ratio",{"$f":"HLOOKUP($AB$5,BenchmarksLookup!$C$6:$O$32,27,FALSE)","v":{"$error":"#N/A"}},{"$f":"HLOOKUP($AB$5,topbench,27,FALSE)","v":{"$error":"#N/A"}}]
[]
[]
[]
[]
["fin de la feuille de calcul"]

{"sheet":"Planificateur des finances","index":3,"n_rows":34,"n_cols":28,"rows_kept":34,"cut":false,"hidden":false,"merged":[]}
["Ceci est une calculatrice d'aide aux décisions d'affaire à la ferme qui comporte 5 feuilles de travail. Certains champs doivent être remplis par l'utilisateur. Elle peut avoir 10 colonnes de largeur et 125 rangées."]
["Planificateur des finances des entreprises agricoles"]
[]
[{"$f":"'Entrée des revenus et dépenses'!B3","v":"Nom de l'entreprise"},null,{"$f":"'Entrée des revenus et dépenses'!D2","v":2023},null,{"$f":"C4+1","v":2024},null,null,"Type de ferme aux fins de comparaison :"]
[null,null,"Votre ferme","Votre ferme","Unité à vendre",null,null,{"$f":"'Outil d''analyse financière'!E6","v":"Parc d’engraissement de bovins de boucherie"}]
[null,null,null,null,"Quantité vendue",null,{"$f":"F5","v":0},"Toutes","Principales"]
[null,null,{"$f":"IF('Entrée des revenus et dépenses'!G5=0,\"\",'Entrée des revenus et dépenses'!G5)","v":"Parc d’engraissement de bovins de boucherie"},null,"Prix",null,{"$f":"\"par \"&F5","v":"par "}]
[null,"Mesures financières","Total $","$ de revenu","Total $",{"$f":"\"$ \"&G7","v":"$ par "},null,{"$f":"\"$ \"&G7","v":"$ par "},{"$f":"\"$ \"&G7","v":"$ par "},null,null,null,null,null,null,null,null,null,null,null,null,null,null,null,null,null,"all","top"]
["$","Revenus des activités agricoles",{"$f":"SUM('Entrée des revenus et dépenses'!G6:G30,'Entrée des revenus et dépenses'!G114,'Entrée des revenus et dépenses'!G115)","v":50},{"$f":"IFERROR(C9/$C$9,\"\")","v":1},{"$f":"F6*F7","v":0},{"$f":"IFERROR(E9/$F$6,\"\")","v":""},null,{"$f":"IFERROR(AA9/$F$6,\"\")","v":""},{"$f":"IFERROR(AB9/$F$6,\"\")","v":""},null,null,null,null,null,null,null,null,null,null,null,null,null,null,null,null,null,{"$f":"E9","v":0},{"$f":"AA9","v":0}]
["$","Coûts des produits vendus",{"$f":"SUM('Entrée des revenus et dépenses'!G54:G71,'Entrée des revenus et dépenses'!G73,'Entrée des revenus et dépenses'!G74,'Entrée des revenus et dépenses'!G75,'Entrée des revenus et dépenses'!G76,'Entrée des revenus et dépenses'!G77,'Entrée des revenus et dépenses'!G84,'Entrée des revenus et dépenses'!G85,'Entrée des revenus et dépenses'!G116)-'Entrée des revenus et dépenses'!G117","v":0},{"$f":"IFERROR(C10/$C$9,\"\")","v":0},{"$f":"IFERROR($E$9*D10,\"\")","v":0},{"$f":"IFERROR(E10/$F$6,\"\")","v":""},null,{"$f":"IFERROR(AA10/$F$6,\"\")","v":""},{"$f":"IFERROR(AB10/$F$6,\"\")","v":""},null,null,null,null,null,null,null,null,null,null,null,null,null,null,null,null,null,{"$f":"IFERROR($AA$9*'Outil d''analyse financière'!E10,\"\")","v":""},{"$f":"IFERROR($AB$9*'Outil d''analyse financière'!F10,\"\")","v":""}]
["$","Marge brute",{"$f":"C9-C10","v":50},1,{"$f":"IFERROR($E$9*D11,\"\")","v":0},"",null,"","",null,null,null,null,null,null,null,null,null,null,null,null,null,null,null,null,null,{"$f":"IFERROR($AA$9*'Outil d''analyse financière'!E11,\"\")","v":""},{"$f":"IFERROR($AB$9*'Outil d''analyse financière'!F11,\"\")","v":""}]
["$","Charges d’exploitation directes",{"$f":"SUM('Entrée des revenus et dépenses'!G78,'Entrée des revenus et dépenses'!G82,'Entrée des revenus et dépenses'!G99,'Entrée des revenus et dépenses'!G82,'Entrée des revenus et dépenses'!G72,'Entrée des revenus et dépenses'!G86,'Entrée des revenus et dépenses'!G91,'Entrée des revenus et dépenses'!G101,'Entrée des revenus et dépenses'!G89,'Entrée des revenus et dépenses'!G102,'Entrée des revenus et dépenses'!G80,'Entrée des revenus et dépenses'!G100,'Entrée des revenus et dépenses'!G79,'Entrée des revenus et dépenses'!G81,'Entrée des revenus et dépenses'!G107)","v":0},0,0,"",null,"","",null,null,null,null,null,null,null,null,null,null,null,null,null,null,null,null,null,{"$f":"IFERROR($AA$9*'Outil d''analyse financière'!E12,\"\")","v":""},{"$f":"IFERROR($AB$9*'Outil d''analyse financière'!F12,\"\")","v":""}]
["$","Bénéfice sectoriel",{"$f":"C11-C12","v":50},1,0,"",null,"","",null,null,null,null,null,null,null,null,null,null,null,null,null,null,null,null,null,{"$f":"IFERROR($AA$9*'Outil d''analyse financière'!E13,\"\")","v":""},{"$f":"IFERROR($AB$9*'Outil d''analyse financière'!F13,\"\")","v":""}]
["$","Frais généraux d’exploitation",{"$f":"SUM('Entrée des revenus et dépenses'!G92,'Entrée des revenus et dépenses'!G88,'Entrée des revenus et dépenses'!G94,'Entrée des revenus et dépenses'!G95,'Entrée des revenus et dépenses'!G96,'Entrée des revenus et dépenses'!G103,'Entrée des revenus et dépenses'!G104,'Entrée des revenus et dépenses'!G110)","v":0},0,0,"",null,"","",null,null,null,null,null,null,null,null,null,null,null,null,null,null,null,null,null,{"$f":"IFERROR($AA$9*'Outil d''analyse financière'!E14,\"\")","v":""},{"$f":"IFERROR($AB$9*'Outil d''analyse financière'!F14,\"\")","v":""}]
["$","BAIIALA ",{"$f":"C13-C14","v":50},1,0,"",null,"","",null,null,null,null,null,null,null,null,null,null,null,null,null,null,null,null,null,{"$f":"IFERROR($AA$9*'Outil d''analyse financière'!E15,\"\")","v":""},{"$f":"IFERROR($AB$9*'Outil d''analyse financière'!F15,\"\")","v":""}]
["$","Coût annuel du capital",{"$f":"SUM('Entrée des revenus et dépenses'!G109,'Entrée des revenus et dépenses'!G105,'Entrée des revenus et dépenses'!G87,'Entrée des revenus et dépenses'!G108,'Entrée des revenus et dépenses'!G90,'Entrée des revenus et dépenses'!G97,'Entrée des revenus et dépenses'!G98)","v":0},0,0,"",null,"","",null,null,null,null,null,null,null,null,null,null,null,null,null,null,null,null,null,{"$f":"IFERROR($AA$9*'Outil d''analyse financière'!E16,\"\")","v":""},{"$f":"IFERROR($AB$9*'Outil d''analyse financière'!F16,\"\")","v":""}]
["$","BAII (bénéfice d’exploitation)",{"$f":"C15-C16","v":50},1,0,"",null,"","",null,null,null,null,null,null,null,null,null,null,null,null,null,null,null,null,null,{"$f":"IFERROR($AA$9*'Outil d''analyse financière'!E17,\"\")","v":""},{"$f":"IFERROR($AB$9*'Outil d''analyse financière'!F17,\"\")","v":""}]
["$","Intérêts débiteurs",{"$f":"'Entrée des revenus et dépenses'!G93","v":0},0,0,"",null,"","",null,null,null,null,null,null,null,null,null,null,null,null,null,null,null,null,null,{"$f":"IFERROR($AA$9*'Outil d''analyse financière'!E18,\"\")","v":""},{"$f":"IFERROR($AB$9*'Outil d''analyse financière'!F18,\"\")","v":""}]
["$","BAI (revenu agricole net)",{"$f":"C17-C18","v":50},1,0,"",null,"","",null,null,null,null,null,null,null,null,null,null,null,null,null,null,null,null,null,{"$f":"IFERROR($AA$9*'Outil d''analyse financière'!E19,\"\")","v":""},{"$f":"IFERROR($AB$9*'Outil d''analyse financière'!F19,\"\")","v":""}]
[null,"Ratios financiers ",null,"%","Total $",{"$f":"F8","v":"$ par "},null,{"$f":"H8","v":"$ par "},{"$f":"I8","v":"$ par "}]
["%","Ratio des intérêts débiteurs",null,{"$f":"'Outil d''analyse financière'!D23","v":0},{"$f":"E18","v":0},{"$f":"IFERROR(D21*$F$9,\"\")","v":""},null,{"$f":"IFERROR($H$9*'Outil d''analyse financière'!E23,\"\")","v":""},{"$f":"IFERROR($I$9*'Outil d''analyse financière'!F23,\"\")","v":""},null,null,null,null,null,null,null,null,null,null,null,null,null,null,null,null,null,{"$f":"IFERROR($AA$9*'Outil d''analyse financière'!E23,\"\")","v":""},{"$f":"IFERROR($AB$9*'Outil d''analyse financière'!F23,\"\")","v":""}]
["%","Ratio des charges d’exploitation",null,{"$f":"'Outil d''analyse financière'!D24","v":0},{"$f":"IFERROR(D22*E9,\"\")","v":0},{"$f":"IFERROR(D22*$F$9,\"\")","v":""},null,{"$f":"IFERROR($H$9*'Outil d''analyse financière'!E24,\"\")","v":""},{"$f":"IFERROR($I$9*'Outil d''analyse financière'!F24,\"\")","v":""},null,null,null,null,null,null,null,null,null,null,null,null,null,null,null,null,null,{"$f":"IFERROR($AA$9*'Outil d''analyse financière'!E24,\"\")","v":""},{"$f":"IFERROR($AB$9*'Outil d''analyse financière'!F24,\"\")","v":""}]
["%","Ratio des dépenses énergétiques",null,{"$f":"'Outil d''analyse financière'!D25","v":0},{"$f":"IFERROR(D23*E9,\"\")","v":0},"",null,{"$f":"IFERROR($H$9*'Outil d''analyse financière'!E25,\"\")","v":""},{"$f":"IFERROR($I$9*'Outil d''analyse financière'!F25,\"\")","v":""},null,null,null,null,null,null,null,null,null,null,null,null,null,null,null,null,null,{"$f":"IFERROR($AA$9*'Outil d''analyse financière'!E25,\"\")","v":""},{"$f":"IFERROR($AB$9*'Outil d''analyse financière'!F25,\"\")","v":""}]
["%","Ratio des dépenses de main-d’œuvre",null,{"$f":"'Outil d''analyse financière'!D26","v":0},{"$f":"IFERROR(D24*E9,\"\")","v":0},"",null,{"$f":"IFERROR($H$9*'Outil d''analyse financière'!E26,\"\")","v":""},{"$f":"IFERROR($I$9*'Outil d''analyse financière'!F26,\"\")","v":""},null,null,null,null,null,null,null,null,null,null,null,null,null,null,null,null,null,{"$f":"IFERROR($AA$9*'Outil d''analyse financière'!E26,\"\")","v":""},{"$f":"IFERROR($AB$9*'Outil d''analyse financière'!F26,\"\")","v":""}]
["%","Ratio des charges d’exploitation des machines",null,{"$f":"'Outil d''analyse financière'!D27","v":0},{"$f":"IFERROR(D25*E9,\"\")","v":0},"",null,{"$f":"IFERROR($H$9*'Outil d''analyse financière'!E27,\"\")","v":""},{"$f":"IFERROR($I$9*'Outil d''analyse financière'!F27,\"\")","v":""},null,null,null,null,null,null,null,null,null,null,null,null,null,null,null,null,null,{"$f":"IFERROR($AA$9*'Outil d''analyse financière'!E27,\"\")","v":""},{"$f":"IFERROR($AB$9*'Outil d''analyse financière'!F27,\"\")","v":""}]
["Animaux d’élevage"]
["%","Ratio des dépenses totales pour les aliments pour animaux",null,{"$f":"'Outil d''analyse financière'!D29","v":0},{"$f":"IFERROR(D27*E9,\"\")","v":0},"",null,{"$f":"IFERROR($H$9*'Outil d''analyse financière'!E29,\"\")","v":""},{"$f":"IFERROR($I$9*'Outil d''analyse financière'!F29,\"\")","v":""},null,null,null,null,null,null,null,null,null,null,null,null,null,null,null,null,null,{"$f":"IFERROR($AA$9*'Outil d''analyse financière'!E29,\"\")","v":""},{"$f":"IFERROR($AB$9*'Outil d''analyse financière'!F29,\"\")","v":""}]
["%","Ratio des achats de bétail",null,{"$f":"'Outil d''analyse financière'!D30","v":0},{"$f":"IFERROR(D28*E9,\"\")","v":0},"",null,{"$f":"IFERROR($H$9*'Outil d''analyse financière'!E30,\"\")","v":""},{"$f":"IFERROR($I$9*'Outil d''analyse financière'!F30,\"\")","v":""},null,null,null,null,null,null,null,null,null,null,null,null,null,null,null,null,null,{"$f":"IFERROR($AA$9*'Outil d''analyse financière'!E30,\"\")","v":""},{"$f":"IFERROR($AB$9*'Outil d''analyse financière'!F30,\"\")","v":""}]
["%","Ratio des dépenses en santé",null,{"$f":"'Outil d''analyse financière'!D31","v":0},{"$f":"IFERROR(D29*E9,\"\")","v":0},"",null,{"$f":"IFERROR($H$9*'Outil d''analyse financière'!E31,\"\")","v":""},{"$f":"IFERROR($I$9*'Outil d''analyse financière'!F31,\"\")","v":""},null,null,null,null,null,null,null,null,null,null,null,null,null,null,null,null,null,{"$f":"IFERROR($AA$9*'Outil d''analyse financière'!E31,\"\")","v":""},{"$f":"IFERROR($AB$9*'Outil d''analyse financière'!F31,\"\")","v":""}]
[]
[]
[]
[]
["fin de la feuille de calcul"]

{"sheet":"Définitions","index":4,"n_rows":123,"n_cols":5,"rows_kept":123,"cut":false,"hidden":false,"merged":[]}
["Ceci est une calculatrice d'aide aux décisions d'affaire à la ferme qui comporte 5 feuilles de travail. Certains champs doivent être remplis par l'utilisateur. Elle peut avoir 10 colonnes de largeur et 125 rangées."]
["Sommaire d’analyse financière des entreprises agricoles de l’Ontario"]
["Rapports et repères financiers normalisés*"]
["Les résultats et les points de repère du sommaire financier des entreprises agricoles de l’Ontario utilisent un format de rapports financiers normalisés. "]
["Les dépenses sont groupées en 5 catégories principales pour l’analyse afin de permettre une comparaison au sein de la ferme et parmi les types de fermes. "]
["Les définitions des catégories de dépenses, des mesures financières et des ratios financiers sont présentées ci-dessous."]
["Catégories de revenus et de dépenses"]
[null,null,"Le calcul comprend :"]
["Les revenus des activités agricoles","+","Ventes de marchandises","+","Variation des stocks"]
[null,"+","Paiements d’assurance-récolte","+","Variation des comptes débiteurs  "]
["Coûts des produits vendus","+","Achats de marchandises (cultures, semences, aliments pour animaux, bétail)","+","Variation des comptes créditeurs"]
[null,"+","Engrais et suppléments pour le sol","-","Variation des intrants achetés"]
[null,"+","Pesticides et traitements chimiques"]
[null,"+","Primes d’assurance (récolte ou production)"]
[null,"+","Primes d’assurance privée pour les marchandises autorisées"]
[null,"+","Frais vétérinaires, médicaments, frais d’I.A."]
[null,"+","Minéraux et sels"]
[null,"+","Commissions et prélèvements"]
["Charges d’exploitation directes","+","Machinerie (essence, carburant diesel, huile)"]
[null,"+","Salaires versés à des personnes sans lien de dépendance"]
[null,"+","Salaires versés à des personnes sans lien de dépendance"]
[null,"+","Entreposage/séchage"]
[null,"+","Conteneurs et ficelle"]
[null,"+","Machinerie (réparations, permis, assurance)"]
[null,"+","Travail agricole à forfait"]
[null,"+","Petits outils"]
[null,"+","Réparations des bâtiments et des clôtures"]
[null,"+","Analyses du sol"]
[null,"+","Fret et expédition"]
[null,"+","Frais afférents aux véhicules moteurs"]
[null,"+","Électricité"]
[null,"+","Chauffage"]
[null,"+","Achats de marchandises revendues"]
["Coûts indirects d’exploitation","+","Autres primes d’assurance"]
["Charges","+","Coûts de publicité et de promotion"]
[null,"+","Adhésions et abonnements"]
[null,"+","Frais de bureau"]
[null,"+","Frais juridiques et comptables"]
[null,"+","Licences et permis"]
[null,"+","Téléphone"]
[null,"+","Autres (veuillez préciser)"]
["Coût annuel du capital","+","Déduction pour les immobilisations déductibles"]
[null,"+","Location de contingents"]
[null,"+","Déduction pour amortissement"]
[null,"+","Location et location à bail de machines"]
[null,"+","Frais d’intérêt et de location de véhicules moteurs"]
[null,"+","Défrichement et drainage des terrains"]
[null,"+","Impôt foncier"]
[null,"+","Location (terrains, bâtiments, pâturages)"]
["Intérêts débiteurs",null,"Intérêt (immobilier, hypothécaire, autre)"]
[]
["Mesures financières"]
["Marge brute","=","Revenus des activités agricoles"]
[null,"-","Coûts des produits vendus"]
["Bénéfice sectoriel","=","Revenus des activités agricoles"]
[null,"-","Coûts des produits vendus"]
[null,"-","Charges d’exploitation directes"]
["BAIIALA — \nBénéfices avant intérêts, impôts, amortissement et loyers","=","Revenus des activités agricoles"]
[null,"-","Coûts des produits vendus"]
[null,"-","Charges d’exploitation directes"]
[null,"-","Frais généraux d’exploitation"]
["BAII — \nBénéfice avant intérêts et impôts","=","Revenus des activités agricoles"]
[null,"-","Coûts des produits vendus"]
["(Bénéfice d’exploitation)","-","Charges d’exploitation directes"]
[null,"-","Frais généraux d’exploitation"]
[null,"- ","Coût annuel du capital"]
["BAI — \nBénéfice avant impôts","=","Revenus des activités agricoles"]
[null,"-","Coûts des produits vendus"]
["(Revenu agricole net)","-","Charges d’exploitation directes"]
[null,"-","Frais généraux d’exploitation"]
[null,"- ","Coût annuel du capital"]
[null,"-","Intérêts débiteurs"]
[]
["Ratios financiers"]
["Couverture de l’intérêt",null,"BAII (bénéfice avant intérêts et impôts)"]
[null,"÷","Intérêts débiteurs"]
["Ratio des intérêts débiteurs",null,"Intérêts débiteurs"]
[null,"÷","Revenus des activités agricoles"]
["Ratio des charges d’exploitation",null,"Total des charges"]
[null,"-","Déduction pour les immobilisations déductibles"]
[null,"-","Déduction pour amortissement"]
[null,"÷","Revenus des activités agricoles"]
["Ratio des dépenses de main-d’œuvre","+","Salaires versés à des personnes sans lien de dépendance"]
[null,"+","Salaires versés à des personnes sans lien de dépendance"]
[null,"÷","Revenus des activités agricoles"]
["Ratio des dépenses énergétiques","+","Électricité"]
[null,"+","Chauffage"]
[null,"÷","Revenus des activités agricoles"]
["Ratio des charges d’exploitation des machines",null,"Frais afférents aux machines "]
[null,"+","Machinerie (essence, carburant diesel, huile)"]
[null,"+","Machinerie (réparations, permis, assurance)"]
[null,"+","Travail agricole à forfait"]
[null,"+","Location et location à bail de machines"]
[null,"+","Fret et expédition"]
[null,"÷","Revenus des activités agricoles"]
["Exploitations de cultures"]
["Ratio des dépenses pour les intrants de culture",null,"Coûts des produits vendus"]
[null,"÷","Revenus des activités agricoles"]
["Location : ratio de l’impôt foncier",null,"Location (terrains, bâtiments, pâturages)"]
[null,"÷","Impôt foncier"]
["Exploitations d’élevage"]
["Ratio des dépenses pour les aliments pour animaux",null,"Dépenses pour les aliments pour animaux cultivés sur place et achetés**"]
[null,"+","Achats de produits de culture (aliments pour animaux, céréales fourragères, semences)"]
[null,"+","Engrais et suppléments pour le sol"]
[null,"+","Pesticides et traitements chimiques"]
[null,"+","Primes d’assurance (récolte ou production)"]
[null,"+","Machinerie (essence, carburant diesel, huile)"]
[null,"+","Machinerie (réparations, permis, assurance)"]
[null,"+","Location et location à bail de machines"]
[null,"+","Conteneurs et ficelle"]
[null,"+","Entreposage/séchage"]
[null,"+","Travail agricole à forfait"]
[null,"-","Variation des intrants achetés"]
[null,"÷","Revenus des activités agricoles"]
[null,"** n’inclut pas les coûts du capital, la main-d’œuvre des cultures et l’intérêt attribuable aux aliments pour animaux"]
["Ratio des dépenses en santé",null,"Frais vétérinaires, médicaments, frais d’I.A."]
[null,"÷","Revenus des activités agricoles"]
[]
["*Pour des renseignements supplémentaires sur les états financiers et les repères financiers normalisés :"]
["Agri-Food Management Excellence"]
["www.agrifoodtraining.com/white-papers-think-pieces "]
[]
["fin de la feuille de calcul"]

{"sheet":"CommodityList","index":5,"n_rows":253,"n_cols":6,"rows_kept":253,"cut":false,"hidden":true,"merged":[]}
[null,"Liste des produits",null,null,"Liste des paiements de programmes"]
[null,"Aliments préparés pour animaux et compléments protéiques (détaillées)",46,null,"Agri-protection (assurance-production, assurance-récolte) – Autres produits (y compris le bétail)",463]
[null,"Avoine",45,null,"Agri-protection (assurance-production, assurance-récolte) – Céréales, oléagineux et cultures spéciales",401]
[null,"Betterave à sucre (et mélasse)",268,null,"Agri-protection (assurance-production, assurance-récolte) – Cultures horticoles comestibles",402]
[null,"Blé",56,null,"Agri-protection (assurance-production, assurance-récolte) – Cultures horticoles non comestibles",470]
[{"$f":"IF('Entrée des revenus et dépenses'!B6<>0,VLOOKUP('Entrée des revenus et dépenses'!B6,$B$2:$C$255,2,FALSE),\"\")","v":""},"Bourrache",6,null,"Assurance des prix du bétail",667]
[{"$f":"IF('Entrée des revenus et dépenses'!B7<>0,VLOOKUP('Entrée des revenus et dépenses'!B7,$B$2:$C$255,2,FALSE),\"\")","v":""},"Cameline",282,null,"Assurance privée contre la grêle",407]
[{"$f":"IF('Entrée des revenus et dépenses'!B8<>0,VLOOKUP('Entrée des revenus et dépenses'!B8,$B$2:$C$255,2,FALSE),\"\")","v":""},"Canola",10,null,"Autres programmes d'Agri relance (revenus admissibles)Note1",627]
[{"$f":"IF('Entrée des revenus et dépenses'!B9<>0,VLOOKUP('Entrée des revenus et dépenses'!B9,$B$2:$C$255,2,FALSE),\"\")","v":""},"Carthame",50,null,"COVID-19 – Agri-relance – Programmes de retrait du bétail",699]
[{"$f":"IF('Entrée des revenus et dépenses'!B10<>0,VLOOKUP('Entrée des revenus et dépenses'!B10,$B$2:$C$255,2,FALSE),\"\")","v":""},"Chanvre",30,null,"COVID-19 – Autres paiements d'aide (revenus admissibles)",687]
[{"$f":"IF('Entrée des revenus et dépenses'!B11<>0,VLOOKUP('Entrée des revenus et dépenses'!B11,$B$2:$C$255,2,FALSE),\"\")","v":""},"Épeautre",37,null,"COVID-19 – Paiements de subventions pour des travailleurs étrangers temporaires",686]
[{"$f":"IF('Entrée des revenus et dépenses'!B12<>0,VLOOKUP('Entrée des revenus et dépenses'!B12,$B$2:$C$255,2,FALSE),\"\")","v":""},"Fève soja",53,null,"COVID-19 – Paiements de subvention salariale pour les salaires versés à des personnes sans lien de dépendance",684]
[{"$f":"IF('Entrée des revenus et dépenses'!B13<>0,VLOOKUP('Entrée des revenus et dépenses'!B13,$B$2:$C$255,2,FALSE),\"\")","v":""},"Féverole",12,null,"Indemnités d'assurance privée pour le remplacement des dépenses admissibles",406]
[{"$f":"IF('Entrée des revenus et dépenses'!B14<>0,VLOOKUP('Entrée des revenus et dépenses'!B14,$B$2:$C$255,2,FALSE),\"\")","v":""},"Fourrage (y compris granulés et ensilage)",264,null,"Indemnités d'assurance privée pour le remplacement des produits admissibles",681]
[{"$f":"IF('Entrée des revenus et dépenses'!B15<>0,VLOOKUP('Entrée des revenus et dépenses'!B15,$B$2:$C$255,2,FALSE),\"\")","v":""},"Graine d'alpiste des Canaries",8,null,"Indemnités d'assurance privée pour les produits admissibles (assurance de la production, des prix et de la marge)",661]
[{"$f":"IF('Entrée des revenus et dépenses'!B16<>0,VLOOKUP('Entrée des revenus et dépenses'!B16,$B$2:$C$255,2,FALSE),\"\")","v":""},"Graine de lin",14,null,"Paiements d'aide d'Agri-relance pour les producteurs victimes de la sécheresse (admissible)",774]
[{"$f":"IF('Entrée des revenus et dépenses'!B17<>0,VLOOKUP('Entrée des revenus et dépenses'!B17,$B$2:$C$255,2,FALSE),\"\")","v":""},"Graine de moutarde",44,null,"Paiement de l'Agence canadienne d'inspection des aliments (ACIA) pour d'autres montants",665]
[{"$f":"IF('Entrée des revenus et dépenses'!B18<>0,VLOOKUP('Entrée des revenus et dépenses'!B18,$B$2:$C$255,2,FALSE),\"\")","v":""},"Graines/Chardons de Niger",283,null,"Paiements de l'Agence canadienne d'inspection des aliments (ACIA) pour les produits admissibles",663]
[{"$f":"IF('Entrée des revenus et dépenses'!B19<>0,VLOOKUP('Entrée des revenus et dépenses'!B19,$B$2:$C$255,2,FALSE),\"\")","v":""},"Grains (granulés, criblures et ensilage)",39,null,"Paiement de l'Agence canadienne d'inspection des aliments pour les produits soumis à gestion de l'offre (ACIA)",664]
[{"$f":"IF('Entrée des revenus et dépenses'!B20<>0,VLOOKUP('Entrée des revenus et dépenses'!B20,$B$2:$C$255,2,FALSE),\"\")","v":""},"Grains mélangés",24,null,"Programme d'assurance d'aliments du bétail",412]
[{"$f":"IF('Entrée des revenus et dépenses'!B21<>0,VLOOKUP('Entrée des revenus et dépenses'!B21,$B$2:$C$255,2,FALSE),\"\")","v":""},"Haricot (sec, comestible)",4,null,"Programme d'indemnisation pour les dégâts causés par la sauvagine et la faune – Céréales, oléagineux et cultures spéciales",418]
[{"$f":"IF('Entrée des revenus et dépenses'!B22<>0,VLOOKUP('Entrée des revenus et dépenses'!B22,$B$2:$C$255,2,FALSE),\"\")","v":""},"Kamut",36,null,"Programme d'indemnisation pour les dégâts causés par la sauvagine et la faune – Produits horticoles",419]
[{"$f":"IF('Entrée des revenus et dépenses'!B23<>0,VLOOKUP('Entrée des revenus et dépenses'!B23,$B$2:$C$255,2,FALSE),\"\")","v":""},"Kénaf",317,null,"Programme d'indemnisation pour les dégâts causés par la sauvagine et la faune – Autres produits",425]
[{"$f":"IF('Entrée des revenus et dépenses'!B24<>0,VLOOKUP('Entrée des revenus et dépenses'!B24,$B$2:$C$255,2,FALSE),\"\")","v":""},"Lathyrus",40,null,"Programme d'intervention à la suite de la tempête post tropicale Dorian",772]
[{"$f":"IF('Entrée des revenus et dépenses'!B25<>0,VLOOKUP('Entrée des revenus et dépenses'!B25,$B$2:$C$255,2,FALSE),\"\")","v":""},"Lentille",41,null,"Programme de paiements directs pour les producteurs laitiers (PPDPL)",683]
[null,"Lupin",42,null,"Programme de protection des cultures de couverture",473]
[null,"Maïs",11,null,"Programme de réforme des porcs reproducteurs (toutes les provinces)",582]
[null,"Millet",43,null,"Initiative Canada-Alberta d'aide à l'approvisionnement en aliments du bétail de 2021 (admissible)",776]
[null,"Orge",3,null,"Initiative Canada-Alberta de rétablissement de l'industrie porcine de 2021",778]
[null,"Paiements de la Commission canadienne du blé",2,null,"Initiative d'aide aux éleveurs d'animaux atteints de tuberculose bovine de 2016 en Alberta (revenus admissibles)",674]
[null,"Paille",267,null,"Initiative Canada-Manitoba d'aide au transport du bétail pour les éleveurs victimes de la sécheresse",780]
[{"$f":"IF('Entrée des revenus et dépenses'!B32<>0,VLOOKUP('Entrée des revenus et dépenses'!B32,$E$2:$F$75,2,FALSE),\"\")","v":""},"Pois chiche/Garbanzo",23,null,"Initiative Canada-Manitoba d'aide au transport et à l'approvisionnement en aliments du bétail pour les éleveurs",779]
[{"$f":"IF('Entrée des revenus et dépenses'!B33<>0,VLOOKUP('Entrée des revenus et dépenses'!B33,$E$2:$F$75,2,FALSE),\"\")","v":""},"Pois sec",13,null,"Programme d'assurance du bétail de Terre-Neuve-et-Labrador",771]
[{"$f":"IF('Entrée des revenus et dépenses'!B34<>0,VLOOKUP('Entrée des revenus et dépenses'!B34,$E$2:$F$75,2,FALSE),\"\")","v":""},"Quinoa",47,null,"Programme d'aide au transport de la chaux du Nouveau-Brunswick",782]
[{"$f":"IF('Entrée des revenus et dépenses'!B35<>0,VLOOKUP('Entrée des revenus et dépenses'!B35,$E$2:$F$75,2,FALSE),\"\")","v":""},"Radis oléagineux",38,null,"Contribution visant à aider les producteurs de fruits de verger (pomme et poire) de la Nouvelle-Écosse de 2016",673]
[{"$f":"IF('Entrée des revenus et dépenses'!B36<>0,VLOOKUP('Entrée des revenus et dépenses'!B36,$E$2:$F$75,2,FALSE),\"\")","v":""},"Riz",48,null,"Programme de 2018 de la Nouvelle-Écosse pour pallier les pertes liées au gel",678]
[null,"Sarrasin",7,null,"Fonds ontarien d'aide spéciale aux apiculteurs",552]
[null,"Seigle",49,null,"Initiative Canada-Île-du-Prince-Édouard de reprise des activités après la récolte de l'automne 2018",680]
[null,"Semence fourragère",15,null,"Programme de récupération de pommes de terre de semence de l'Î.-P.-É. 2020",770]
[null,"Semences de légumes (production de semences uniquement)",51,null,"Plan d'intervention Canada–Île-du-Prince-Édouard 2022 pour la gestion des pommes de terre excédentaires",781]
[null,"Tabac",269,null,"Initiative d'aide aux éleveurs d'animaux atteints de tuberculose bovine de 2016 en Saskatchewan",675]
[null,"Tournesol",54,null,"Programme d'aide aux producteurs de bovins et de porcs de la Saskatchewan",593]
[null,"Triticale",55,null,"Aide spéciale à l'intention des exploitations agricoles",560]
[null,"Champignons (y compris les blancs)",131,null,"Autres programmes d'Agri-relance (revenus non admissibles)Note1",632]
[null,"Fleurs comestibles",180,null,"COVID-19 – Autres paiements d'aide (revenus non-admissibles)",688]
[null,"Houblon",383,null,"COVID-19 – Paiements de subvention salariale pour les salaires versés à des personnes ayant un lien de dépendance",685]
[null,"Mauvaises herbes (comestibles)",211,null,"Fonds de secours visant l'industrie en transition",478]
[null,"Noix (toutes)",140,null,"Paiements d'aide d'Agri-relance pour les producteurs victimes de la sécheresse (non admissible)",773]
[null,"Amélanche",72,null,"Paiement de l'Agence canadienne d'inspection des aliments (ACIA) pour les produits non admissibles",587]
[null,"Argousier",76,null,"Plan vert, programme agricole – Couverture végétale permanente",466]
[{"$f":"IF('Entrée des revenus et dépenses'!B54<>0,VLOOKUP('Entrée des revenus et dépenses'!B54,$B$2:$C$255,2,FALSE),\"\")","v":""},"Baie de sureau",74,null,"Programme d'aide financière de transition",427]
[{"$f":"IF('Entrée des revenus et dépenses'!B55<>0,VLOOKUP('Entrée des revenus et dépenses'!B55,$B$2:$C$255,2,FALSE),\"\")","v":""},"Bleuet",67,null,"Programme d'assurance-revenu de marché – Céréales, oléagineux et cultures spéciales",410]
[{"$f":"IF('Entrée des revenus et dépenses'!B56<>0,VLOOKUP('Entrée des revenus et dépenses'!B56,$B$2:$C$255,2,FALSE),\"\")","v":""},"Canneberge",68,null,"Programme d'assurance-revenu de marché – Cultures horticoles comestibles",411]
[{"$f":"IF('Entrée des revenus et dépenses'!B57<>0,VLOOKUP('Entrée des revenus et dépenses'!B57,$B$2:$C$255,2,FALSE),\"\")","v":""},"Fraise",73,null,"Programme d'assurance-revenu de marché – Cultures horticoles non comestibles",474]
[{"$f":"IF('Entrée des revenus et dépenses'!B58<>0,VLOOKUP('Entrée des revenus et dépenses'!B58,$B$2:$C$255,2,FALSE),\"\")","v":""},"Framboise",71,null,"Programme de soutien à la croissance et à l'efficience de l'industrie pomicole",669]
[{"$f":"IF('Entrée des revenus et dépenses'!B59<>0,VLOOKUP('Entrée des revenus et dépenses'!B59,$B$2:$C$255,2,FALSE),\"\")","v":""},"Groseille (noire, rouge)",65,null,"Programme de transition pour les exploitations porcines (PTEP)",607]
[{"$f":"IF('Entrée des revenus et dépenses'!B60<>0,VLOOKUP('Entrée des revenus et dépenses'!B60,$B$2:$C$255,2,FALSE),\"\")","v":""},"Groseille à maquereau",69,null,"Programme de transition pour les producteurs de tabac",606]
[{"$f":"IF('Entrée des revenus et dépenses'!B61<>0,VLOOKUP('Entrée des revenus et dépenses'!B61,$B$2:$C$255,2,FALSE),\"\")","v":""},"Haskap",75,null,"Programme d'investissement pour fermes laitières (PIFL)",682]
[{"$f":"IF('Entrée des revenus et dépenses'!B62<>0,VLOOKUP('Entrée des revenus et dépenses'!B62,$B$2:$C$255,2,FALSE),\"\")","v":""},"Mûre",66,null,"Rajustement des primes de l'assurance production (AP)",499]
[null,"Mûre de Logan",70,null,"Remise à l'intention des jeunes agriculteurs",559]
[{"$f":"IF('Entrée des revenus et dépenses'!B64<>0,VLOOKUP('Entrée des revenus et dépenses'!B64,$B$2:$C$255,2,FALSE),\"\")","v":""},"Abricot",91,null,"Service canadien de développement des compétences en agriculture (SCDCA)",561]
[{"$f":"IF('Entrée des revenus et dépenses'!B65<>0,VLOOKUP('Entrée des revenus et dépenses'!B65,$B$2:$C$255,2,FALSE),\"\")","v":""},"Cantaloup",168,null,"Services de rotation de la terre (SRT)",557]
[{"$f":"IF('Entrée des revenus et dépenses'!B66<>0,VLOOKUP('Entrée des revenus et dépenses'!B66,$B$2:$C$255,2,FALSE),\"\")","v":""},"Cerise (douce ou sure)",92,null,"Services-conseils aux exploitations agricoles canadiennes (SCEAC)",562]
[{"$f":"IF('Entrée des revenus et dépenses'!B67<>0,VLOOKUP('Entrée des revenus et dépenses'!B67,$B$2:$C$255,2,FALSE),\"\")","v":""},"Citron",85,null,"Subventions laitières",435]
[{"$f":"IF('Entrée des revenus et dépenses'!B68<>0,VLOOKUP('Entrée des revenus et dépenses'!B68,$B$2:$C$255,2,FALSE),\"\")","v":""},"Jus de fruit",81,null,"Initiative Canada-Alberta d'aide à l'approvisionnement en aliments du bétail de 2021 (non admissible)",775]
[{"$f":"IF('Entrée des revenus et dépenses'!B69<>0,VLOOKUP('Entrée des revenus et dépenses'!B69,$B$2:$C$255,2,FALSE),\"\")","v":""},"Kiwi",84,null,"Initiative d'aide aux éleveurs d'animaux atteints de tuberculose bovine de 2016 en Alberta (revenus non admissibles)",676]
[{"$f":"IF('Entrée des revenus et dépenses'!B70<>0,VLOOKUP('Entrée des revenus et dépenses'!B70,$B$2:$C$255,2,FALSE),\"\")","v":""},"Melon",185,null,"Prix garantis par l'Alberta au printemps",495]
[{"$f":"IF('Entrée des revenus et dépenses'!B71<>0,VLOOKUP('Entrée des revenus et dépenses'!B71,$B$2:$C$255,2,FALSE),\"\")","v":""},"Melon d'eau",87,null,"Initiative Canada-Colombie-Britannique d'aide pour lutter contre l'influenza aviaire 2014",670]
[null,"Nectarine",93,null,"Initiative Canada-Colombie-Britannique de rétablissement à la suite des feux de friches de 2017",677]
[null,"Orange",86,null,"Initiative Canada-Colombie-Britannique de rétablissement à la suite des feux de friches de 2018",679]
[null,"Pamplemousse",82,null,"Programme de remise de taxe à l'intention des institutions d'enseignement agricole",556]
[null,"Pêche",94,null,"Contribution visant à aider les producteurs de sirop d'érable de la Nouvelle-Écosse",672]
[null,"Poire",95,null,"Paiement ontarien aux horticulteurs et aux éleveurs de bovins et de porcs",581]
[null,"Pomme",60,null,"Programme Canada – Ontario des céréales et oléagineux",410]
[null,"Prune",96,null,"Programme Canada – Paiement de stabilisation des céréales de l'Ontario",410]
[null,"Pruneau",97,null,"Programme d'aide et paiement pour les cultures horticoles comestibles de l'Ontario",475]
[null,"Raisin",83,null,"Programme de gestion des risques de l'Ontario (incluant le Programme d'autogestion des risques)",565]
[null,"Vin",88,null,"Programme ontarien de paiements de transition au titre de l'évaluation des stocks",441]
[null,"Ail",113,null,"Programme ontarien de subvention des céréales et des graines oléagineuses",471]
[null,"Aneth",108,null,"Supplément au coût de l'Ontario",553]
[null,"Anis",101,null,"Rajustement de la prime de l'assurance récolte (Saskatchewan)",619]
[null,"Basilic",102]
[null,"Cerfeuil",158]
[null,"Ciboulette",104]
[null,"Cilantro",105]
[null,"Consoude",106]
[null,"Coriandre",107]
[null,"Cresson de fontaine",128]
[null,"Cumin",144]
[null,"Echinacée",142]
[null,"Épilobes à feuilles étroites",377]
[null,"Estragon",126]
[null,"Fenouil",110]
[null,"Fenugrec",111]
[null,"Gingko biloba",380]
[null,"Ginseng",114]
[null,"Graine de carvi",103]
[null,"Lavande",379]
[null,"Marjolaine",115]
[null,"Mélisse",378]
[null,"Menthe",116]
[null,"Millepertuis",381]
[null,"Monarde",117]
[null,"Origan",118]
[null,"Persil",119]
[null,"Poivre",120]
[null,"Romarin",121]
[null,"Salsifis",123]
[null,"Sarriette",125]
[null,"Sauge",122]
[null,"Thym",127]
[null,"Artichaut",160]
[null,"Asperge",161]
[null,"Aubergine",176]
[null,"Bette à carde",206]
[null,"Betterave",162]
[null,"Brocofleur",164]
[null,"Brocoli",165]
[null,"Carotte",169]
[null,"Céleri",171]
[null,"Chicorée de Bruxelles",212]
[null,"Chou",167]
[null,"Chou cavalier",174]
[null,"Chou de Bruxelles",166]
[null,"Chou fourrager",214]
[null,"Chou-fleur",170]
[null,"Chou-navet",208]
[null,"Chou-rave",182]
[null,"Citrouille",192]
[null,"Concombre",175]
[null,"Cornichon épineux",221]
[null,"Courge",202]
[null,"Courge à moelle",209]
[null,"Courgette",213]
[null,"Crosse de fougère",179]
[null,"Échalote",198]
[null,"Endive",177]
[null,"Épinard",201]
[null,"Feuille de moutarde",186]
[null,"Gombo",227]
[null,"Haricot frais",25]
[null,"Laitue",184]
[null,"Légumes chinois",173]
[null,"Maïs sucré",203]
[null,"Oignon",187]
[null,"Pak choï",163]
[null,"Panais",190]
[null,"Patate douce/Igname",205]
[null,"Poireau",183]
[null,"Pois de senteur",204]
[null,"Pois vert",223]
[null,"Poivron",191]
[null,"Pommes de terre et sous-produits",147]
[null,"Radis",193]
[null,"Raifort",181]
[null,"Rhubarbe",194]
[null,"Roquette",195]
[null,"Rutabaga",197]
[null,"Stevia",230]
[null,"Tomate",207]
[null,"Concombre",234]
[null,"Laitue",235]
[null,"Poivron",236]
[null,"Tomate",237]
[null,"Tomate cerise",233]
[null,"Arbres (de Noël cultivés)",138]
[null,"Arbres (fruitiers et ornementaux)",139]
[null,"Arbustes",136]
[null,"Fleurs et plantes ornementales",133]
[null,"Fruits et légumes (non comestibles)",134]
[null,"Gazon",137]
[null,"Plantes à massif",132]
[null,"Semences et bulbes",135]
[null,"Autre revenu (détaillées) d'engraissement sur mesure",576]
[null,"Exploitant de parcs d'engraissement à forfait (détaillées) – aliments pour animaux admissibles et protéines",243]
[null,"Exploitant de parcs d'engraissement à forfait (non détaillées) – factures non détaillées et dépenses admissibles",246]
[null,"Achats d'aliments préparés (non détaillées)",571]
[null,"Aliments préparés pour animaux et compléments protéiques (détaillées)",46]
[null,"Autres frais pour l'engraissement (détaillées)",570]
[null,"Autres dépenses pour l'engraissement à façon (détaillées)",572]
[null,"Dépenses (détaillées) d'engraissement sur mesure de propriétaire de bétail",577]
[null,"Dépenses d'engraissement sur mesure (non détaillées)",573]
[null,"Achats d'aliments du bétail par les exploitants de fermes d'élevage d'animaux à fourrure (non détaillées)",574]
[null,"Aliments préparés pour animaux et compléments protéiques (détaillées)",46]
[null,"Dépenses en aliments d'élevage d'animaux à fourrure (détaillées)",310]
[null,"Autruches",371]
[null,"Cailles",324]
[null,"Canards",332]
[null,"Dindons",334]
[null,"Dindons (non soumis à la gestion de l'offre)",591]
[null,"Émeus",373]
[null,"Faisans",338]
[null,"Nandous",372]
[null,"Poules soie",326]
[null,"Œufs de dindons",342]
[null,"Œufs de poules (non soumis à la gestion de l'offre)",589]
[null,"Œufs de poules destinés à la consommation",343]
[null,"Œufs de poules d'incubation",344]
[null,"Oies",333]
[null,"Perdrix",323]
[null,"Pigeons",327]
[null,"Poulets",366]
[null,"Poulets (non soumis à la gestion de l'offre)",590]
[null,"Poulets de Taiwan",325]
[null,"Autre animal de reproduction, reporté",157]
[null,"Bison, reporté",151]
[null,"Bovins, reportés",150]
[null,"Cheval pour vente d'UJG, reporté",156]
[null,"Chèvre, reporté",152]
[null,"Cerf, reporté",154]
[null,"Mouton, reporté",153]
[null,"Wapiti, reporté",155]
[null,"Abeilles coupeuses de feuilles",312]
[null,"Abeilles domestiques",374]
[null,"Alpacas",370]
[null,"Ânes/Mules",367]
[null,"Bison",350]
[null,"Bovin d'abattage",720]
[null,"Bovin d'engraissement",721]
[null,"Bovin pure race de reproduction",722]
[null,"Bovin, vache et taureau",706]
[null,"Bovin, veau",719]
[null,"Chevaux",316]
[null,"Chèvres",354]
[null,"Cerfs",352]
[null,"Chiens (chenils et l'élevage animal exclus)",313]
[null,"Chinchillas",240]
[null,"Lamas",355]
[null,"Lapins",356]
[null,"Marmottes/Hérissons",369]
[null,"Mouton, agneau",723]
[null,"Mouton, brebis et bélier",734]
[null,"Porcs",341]
[null,"Porcs pansus",239]
[null,"Renards",241]
[null,"Rennes",244]
[null,"Sangliers",247]
[null,"Visons",242]
[null,"Wapiti",353]
[null,"Bois",259]
[null,"Cannabis",382]
[null,"Farine de poisson",263]
[null,"Frais de pollinisation",376]
[null,"Fumier",318]
[null,"Laine",328]
[null,"Lait et crème (bovins)",319]
[null,"Lait et crème (non soumis à la gestion de l'offre)",592]
[null,"Miel",129]
[null,"Productions apicoles",375]
[null,"Produits de l'érable",130]
[null,"Semence et embryons",712]
[null,"Urine de jument gravide",322]
[null,"Velours de wapiti",764]

{"sheet":"Sheet1","index":6,"n_rows":253,"n_cols":8,"rows_kept":253,"cut":false,"hidden":true,"merged":[]}
[]
["Aliments préparés pour animaux et compléments protéiques (détaillées)",46,null,null,"Agri-protection (assurance-production, assurance-récolte) – Autres produits (y compris le bétail)",463]
["Avoine",45,null,null,"Agri-protection (assurance-production, assurance-récolte) – Céréales, oléagineux et cultures spéciales",401]
["Betterave à sucre (et mélasse)",268,null,null,"Agri-protection (assurance-production, assurance-récolte) – Cultures horticoles comestibles",402,null,"Intérêts"]
["Blé",56,null,null,"Agri-protection (assurance-production, assurance-récolte) – Cultures horticoles non comestibles",470,null,"Contrat-location (gaz, puits de pétrole, baux de surface, etc.)"]
["Bourrache",6,null,null,"Assurance des prix du bétail",667]
["Cameline",282,null,null,"Assurance privée contre la grêle",407,null,"Gravier"]
["Canola",10,null,null,"Autres programmes d'Agri relance (revenus admissibles)Note1",627,null,"Ristournes"]
["Carthame",50,null,null,"COVID-19 – Agri-relance – Programmes de retrait du bétail",699,null,"Camionnage (lié à l'agriculture seulement)"]
["Chanvre",30,null,null,"COVID-19 – Autres paiements d'aide (revenus admissibles)",687,null,"Reventes de produits achetés"]
["Épeautre",37,null,null,"COVID-19 – Paiements de subventions pour des travailleurs étrangers temporaires",686,null,"Reventes, remises, TPS/TVH pour dépenses admissibles"]
["Fève soja",53,null,null,"COVID-19 – Paiements de subvention salariale pour les salaires versés à des personnes sans lien de dépendance",684]
["Féverole",12,null,null,"Indemnités d'assurance privée pour le remplacement des dépenses admissibles",406,null,"Reventes, remises, TPS/TVH pour dépenses non admissibles et récupération de la déduction pour amortissement (DPA)"]
["Fourrage (y compris granulés et ensilage)",264,null,null,"Indemnités d'assurance privée pour le remplacement des produits admissibles",681]
["Graine d'alpiste des Canaries",8,null,null,"Indemnités d'assurance privée pour les produits admissibles (assurance de la production, des prix et de la marge)",661,null,"récoltes"]
["Graine de lin",14,null,null,"Paiements d'aide d'Agri-relance pour les producteurs victimes de la sécheresse (admissible)",774,null,"Travail agricole à contrat"]
["Graine de moutarde",44,null,null,"Paiement de l'Agence canadienne d'inspection des aliments (ACIA) pour d'autres montants",665,null,"Gestion des risques de l'entreprise (GRE) et programme d'aide en cas de catastrophe"]
["Graines/Chardons de Niger",283,null,null,"Paiements de l'Agence canadienne d'inspection des aliments (ACIA) pour les produits admissibles",663]
["Grains (granulés, criblures et ensilage)",39,null,null,"Paiement de l'Agence canadienne d'inspection des aliments pour les produits soumis à gestion de l'offre (ACIA)",664]
["Grains mélangés",24,null,null,"Programme d'assurance d'aliments du bétail",412,null,"Remboursements non admissibles de paiements provenant de programmes - récoltes"]
["Haricot (sec, comestible)",4,null,null,"Programme d'indemnisation pour les dégâts causés par la sauvagine et la faune – Céréales, oléagineux et cultures spéciales",418]
["Kamut",36,null,null,"Programme d'indemnisation pour les dégâts causés par la sauvagine et la faune – Produits horticoles",419,null,"Pesticides et produits chimiques"]
["Kénaf",317,null,null,"Programme d'indemnisation pour les dégâts causés par la sauvagine et la faune – Autres produits",425,null,"Engrais et suppléments pour le sol"]
["Lathyrus",40,null,null,"Programme d'intervention à la suite de la tempête post tropicale Dorian",772,null,"Contenants et ficelles"]
["Lentille",41,null,null,"Programme de paiements directs pour les producteurs laitiers (PPDPL)",683,null,"Électricité"]
["Lupin",42,null,null,"Programme de protection des cultures de couverture",473,null,"Primes d'assurance (récolte ou production)"]
["Maïs",11,null,null,"Programme de réforme des porcs reproducteurs (toutes les provinces)",582,null,"Minéraux et sel"]
["Millet",43,null,null,"Initiative Canada-Alberta d'aide à l'approvisionnement en aliments du bétail de 2021 (admissible)",776,null,"Honoraires de vétérinaire, médicaments et honoraires de droits de monte"]
["Orge",3,null,null,"Initiative Canada-Alberta de rétablissement de l'industrie porcine de 2021",778]
["Paiements de la Commission canadienne du blé",2,null,null,"Initiative d'aide aux éleveurs d'animaux atteints de tuberculose bovine de 2016 en Alberta (revenus admissibles)",674,null,"Machinerie (essence, carburant diesel, huile)"]
["Paille",267,null,null,"Initiative Canada-Manitoba d'aide au transport du bétail pour les éleveurs victimes de la sécheresse",780,null,"Entreposage et séchage"]
["Pois chiche/Garbanzo",23,null,null,"Initiative Canada-Manitoba d'aide au transport et à l'approvisionnement en aliments du bétail pour les éleveurs",779,null,"Transport et envoi"]
["Pois sec",13,null,null,"Programme d'assurance du bétail de Terre-Neuve-et-Labrador",771,null,"Salaires versés à des personnes sans lien de dépendance"]
["Quinoa",47,null,null,"Programme d'aide au transport de la chaux du Nouveau-Brunswick",782]
["Radis oléagineux",38,null,null,"Contribution visant à aider les producteurs de fruits de verger (pomme et poire) de la Nouvelle-Écosse de 2016",673,null,"Huile de chauffage"]
["Riz",48,null,null,"Programme de 2018 de la Nouvelle-Écosse pour pallier les pertes liées au gel",678,null,"Engraissement à forfait"]
["Sarrasin",7,null,null,"Fonds ontarien d'aide spéciale aux apiculteurs",552,null,"Commissions et redevances"]
["Seigle",49,null,null,"Initiative Canada-Île-du-Prince-Édouard de reprise des activités après la récolte de l'automne 2018",680,null,"Aliments préparés"]
["Semence fourragère",15,null,null,"Programme de récupération de pommes de terre de semence de l'Î.-P.-É. 2020",770]
["Semences de légumes (production de semences uniquement)",51,null,null,"Plan d'intervention Canada–Île-du-Prince-Édouard 2022 pour la gestion des pommes de terre excédentaires",781]
["Tabac",269,null,null,"Initiative d'aide aux éleveurs d'animaux atteints de tuberculose bovine de 2016 en Saskatchewan",675]
["Tournesol",54,null,null,"Programme d'aide aux producteurs de bovins et de porcs de la Saskatchewan",593]
["Triticale",55,null,null,"Aide spéciale à l'intention des exploitations agricoles",560]
["Champignons (y compris les blancs)",131,null,null,"Autres programmes d'Agri-relance (revenus non admissibles)Note1",632]
["Fleurs comestibles",180,null,null,"COVID-19 – Autres paiements d'aide (revenus non-admissibles)",688]
["Houblon",383,null,null,"COVID-19 – Paiements de subvention salariale pour les salaires versés à des personnes ayant un lien de dépendance",685]
["Mauvaises herbes (comestibles)",211,null,null,"Fonds de secours visant l'industrie en transition",478]
["Noix (toutes)",140,null,null,"Paiements d'aide d'Agri-relance pour les producteurs victimes de la sécheresse (non admissible)",773]
["Amélanche",72,null,null,"Paiement de l'Agence canadienne d'inspection des aliments (ACIA) pour les produits non admissibles",587]
["Argousier",76,null,null,"Plan vert, programme agricole – Couverture végétale permanente",466]
["Baie de sureau",74,null,null,"Programme d'aide financière de transition",427]
["Bleuet",67,null,null,"Programme d'assurance-revenu de marché – Céréales, oléagineux et cultures spéciales",410]
["Canneberge",68,null,null,"Programme d'assurance-revenu de marché – Cultures horticoles comestibles",411]
["Fraise",73,null,null,"Programme d'assurance-revenu de marché – Cultures horticoles non comestibles",474]
["Framboise",71,null,null,"Programme de soutien à la croissance et à l'efficience de l'industrie pomicole",669]
["Groseille (noire, rouge)",65,null,null,"Programme de transition pour les exploitations porcines (PTEP)",607]
["Groseille à maquereau",69,null,null,"Programme de transition pour les producteurs de tabac",606]
["Haskap",75,null,null,"Programme d'investissement pour fermes laitières (PIFL)",682]
["Mûre",66,null,null,"Rajustement des primes de l'assurance production (AP)",499]
["Mûre de Logan",70,null,null,"Remise à l'intention des jeunes agriculteurs",559]
["Abricot",91,null,null,"Service canadien de développement des compétences en agriculture (SCDCA)",561]
["Cantaloup",168,null,null,"Services de rotation de la terre (SRT)",557]
["Cerise (douce ou sure)",92,null,null,"Services-conseils aux exploitations agricoles canadiennes (SCEAC)",562]
["Citron",85,null,null,"Subventions laitières",435]
["Jus de fruit",81,null,null,"Initiative Canada-Alberta d'aide à l'approvisionnement en aliments du bétail de 2021 (non admissible)",775]
["Kiwi",84,null,null,"Initiative d'aide aux éleveurs d'animaux atteints de tuberculose bovine de 2016 en Alberta (revenus non admissibles)",676]
["Melon",185,null,null,"Prix garantis par l'Alberta au printemps",495]
["Melon d'eau",87,null,null,"Initiative Canada-Colombie-Britannique d'aide pour lutter contre l'influenza aviaire 2014",670]
["Nectarine",93,null,null,"Initiative Canada-Colombie-Britannique de rétablissement à la suite des feux de friches de 2017",677]
["Orange",86,null,null,"Initiative Canada-Colombie-Britannique de rétablissement à la suite des feux de friches de 2018",679]
["Pamplemousse",82,null,null,"Programme de remise de taxe à l'intention des institutions d'enseignement agricole",556]
["Pêche",94,null,null,"Contribution visant à aider les producteurs de sirop d'érable de la Nouvelle-Écosse",672]
["Poire",95,null,null,"Paiement ontarien aux horticulteurs et aux éleveurs de bovins et de porcs",581]
["Pomme",60,null,null,"Programme Canada – Ontario des céréales et oléagineux",410]
["Prune",96,null,null,"Programme Canada – Paiement de stabilisation des céréales de l'Ontario",410]
["Pruneau",97,null,null,"Programme d'aide et paiement pour les cultures horticoles comestibles de l'Ontario",475]
["Raisin",83,null,null,"Programme de gestion des risques de l'Ontario (incluant le Programme d'autogestion des risques)",565]
["Vin",88,null,null,"Programme ontarien de paiements de transition au titre de l'évaluation des stocks",441]
["Ail",113,null,null,"Programme ontarien de subvention des céréales et des graines oléagineuses",471]
["Aneth",108,null,null,"Supplément au coût de l'Ontario",553]
["Anis",101,null,null,"Rajustement de la prime de l'assurance récolte (Saskatchewan)",619]
["Basilic",102]
["Cerfeuil",158]
["Ciboulette",104]
["Cilantro",105]
["Consoude",106]
["Coriandre",107]
["Cresson de fontaine",128]
["Cumin",144]
["Echinacée",142]
["Épilobes à feuilles étroites",377]
["Estragon",126]
["Fenouil",110]
["Fenugrec",111]
["Gingko biloba",380]
["Ginseng",114]
["Graine de carvi",103]
["Lavande",379]
["Marjolaine",115]
["Mélisse",378]
["Menthe",116]
["Millepertuis",381]
["Monarde",117]
["Origan",118]
["Persil",119]
["Poivre",120]
["Romarin",121]
["Salsifis",123]
["Sarriette",125]
["Sauge",122]
["Thym",127]
["Artichaut",160]
["Asperge",161]
["Aubergine",176]
["Bette à carde",206]
["Betterave",162]
["Brocofleur",164]
["Brocoli",165]
["Carotte",169]
["Céleri",171]
["Chicorée de Bruxelles",212]
["Chou",167]
["Chou cavalier",174]
["Chou de Bruxelles",166]
["Chou fourrager",214]
["Chou-fleur",170]
["Chou-navet",208]
["Chou-rave",182]
["Citrouille",192]
["Concombre",175]
["Cornichon épineux",221]
["Courge",202]
["Courge à moelle",209]
["Courgette",213]
["Crosse de fougère",179]
["Échalote",198]
["Endive",177]
["Épinard",201]
["Feuille de moutarde",186]
["Gombo",227]
["Haricot frais",25]
["Laitue",184]
["Légumes chinois",173]
["Maïs sucré",203]
["Oignon",187]
["Pak choï",163]
["Panais",190]
["Patate douce/Igname",205]
["Poireau",183]
["Pois de senteur",204]
["Pois vert",223]
["Poivron",191]
["Pommes de terre et sous-produits",147]
["Radis",193]
["Raifort",181]
["Rhubarbe",194]
["Roquette",195]
["Rutabaga",197]
["Stevia",230]
["Tomate",207]
["Concombre",234]
["Laitue",235]
["Poivron",236]
["Tomate",237]
["Tomate cerise",233]
["Arbres (de Noël cultivés)",138]
["Arbres (fruitiers et ornementaux)",139]
["Arbustes",136]
["Fleurs et plantes ornementales",133]
["Fruits et légumes (non comestibles)",134]
["Gazon",137]
["Plantes à massif",132]
["Semences et bulbes",135]
["Autre revenu (détaillées) d'engraissement sur mesure",576]
["Exploitant de parcs d'engraissement à forfait (détaillées) – aliments pour animaux admissibles et protéines",243]
["Exploitant de parcs d'engraissement à forfait (non détaillées) – factures non détaillées et dépenses admissibles",246]
["Achats d'aliments préparés (non détaillées)",571]
["Aliments préparés pour animaux et compléments protéiques (détaillées)",46]
["Autres frais pour l'engraissement (détaillées)",570]
["Autres dépenses pour l'engraissement à façon (détaillées)",572]
["Dépenses (détaillées) d'engraissement sur mesure de propriétaire de bétail",577]
["Dépenses d'engraissement sur mesure (non détaillées)",573]
["Achats d'aliments du bétail par les exploitants de fermes d'élevage d'animaux à fourrure (non détaillées)",574]
["Aliments préparés pour animaux et compléments protéiques (détaillées)",46]
["Dépenses en aliments d'élevage d'animaux à fourrure (détaillées)",310]
["Autruches",371]
["Cailles",324]
["Canards",332]
["Dindons",334]
["Dindons (non soumis à la gestion de l'offre)",591]
["Émeus",373]
["Faisans",338]
["Nandous",372]
["Poules soie",326]
["Œufs de dindons",342]
["Œufs de poules (non soumis à la gestion de l'offre)",589]
["Œufs de poules destinés à la consommation",343]
["Œufs de poules d'incubation",344]
["Oies",333]
["Perdrix",323]
["Pigeons",327]
["Poulets",366]
["Poulets (non soumis à la gestion de l'offre)",590]
["Poulets de Taiwan",325]
["Autre animal de reproduction, reporté",157]
["Bison, reporté",151]
["Bovins, reportés",150]
["Cheval pour vente d'UJG, reporté",156]
["Chèvre, reporté",152]
["Cerf, reporté",154]
["Mouton, reporté",153]
["Wapiti, reporté",155]
["Abeilles coupeuses de feuilles",312]
["Abeilles domestiques",374]
["Alpacas",370]
["Ânes/Mules",367]
["Bison",350]
["Bovin d'abattage",720]
["Bovin d'engraissement",721]
["Bovin pure race de reproduction",722]
["Bovin, vache et taureau",706]
["Bovin, veau",719]
["Chevaux",316]
["Chèvres",354]
["Cerfs",352]
["Chiens (chenils et l'élevage animal exclus)",313]
["Chinchillas",240]
["Lamas",355]
["Lapins",356]
["Marmottes/Hérissons",369]
["Mouton, agneau",723]
["Mouton, brebis et bélier",734]
["Porcs",341]
["Porcs pansus",239]
["Renards",241]
["Rennes",244]
["Sangliers",247]
["Visons",242]
["Wapiti",353]
["Bois",259]
["Cannabis",382]
["Farine de poisson",263]
["Frais de pollinisation",376]
["Fumier",318]
["Laine",328]
["Lait et crème (bovins)",319]
["Lait et crème (non soumis à la gestion de l'offre)",592]
["Miel",129]
["Productions apicoles",375]
["Produits de l'érable",130]
["Semence et embryons",712]
["Urine de jument gravide",322]
["Velours de wapiti",764]

{"sheet":"Benchmarks","index":7,"n_rows":32,"n_cols":28,"rows_kept":32,"cut":false,"hidden":true,"merged":[]}
[null,null,"Ontario Farm Financial Analysis Summary"]
[null,null,"Benchmark Summary"]
["The Ontario Farm Financial Data Summary uses farm income and expense data to evaluate financial performance based on farm type."]
["The income and expense data used comes from selected Ontario farm businesses participating in business risk management programs."]
["Financial Measure and Ratio values are the median of the sample."]
[null,"Farm types","Beef cow calf",null,"Beef feedlot",null,"Sheep",null,"Swine Farrow to Finish",null,"Swine Finishing",null,"Dairy Goat",null,"Apple",null,"Greenhouse cucumber",null,"Greenhouse pepper",null,"Greenhouse tomato",null,"Greenhouse flower",null,"Field crops",null,"Grapes"]
[null,null,"All","Top","All","Top","All","Top","All","Top","All","Top","All","Top","All","Top","All","Top","All","Top","All","Top","All","Top","All","Top","All","Top"]
[]
[null,"Financial Measures","$ of Revenue from farming operations"]
["$","Revenue from farming operations",1,1,1,1,1,1,1,1,1,1,1,1,1,1,1,1,1,1,1,1,1,1,1,1,1,1]
["$","Cost of goods sold",0.41054322048141023,0.32465948738237743,0.83298910081486954,0.73284424872875598,0.43258170504638283,0.35108599739127305,0.56409673649316161,0.47313055502473278,0.74346721653903414,0.63169181781175232,0.32155577272924657,0.24919819000849575,0.17227672107472347,0.15248901630236761,0.24844070241137622,0.20370462113282453,0.16974899547608441,0.15478559971137659,0.15909187677357908,0.12503987823974511,0.22754784167492748,0.19616313444643377,0.33635339950437304,0.28402107111501318,0.16109616818347694,0.10523021329579904]
["$","Gross Margin",0.58945677951858977,0.67534051261762262,0.16701089918513046,0.26715575127124402,0.56741829495361717,0.648914002608727,0.43590326350683839,0.52686944497526722,0.25653278346096586,0.36830818218824768,0.67844422727075337,0.75080180999150425,0.82772327892527653,0.84751098369763245,0.75155929758862383,0.7962953788671755,0.83025100452391554,0.84521440028862338,0.84090812322642094,0.87496012176025495,0.77245215832507252,0.80383686555356626,0.66364660049562696,0.71597892888498682,0.83890383181652306,0.89476978670420093]
["$","Direct Operating Expenses",0.32210125026589898,0.23749535082250378,9.1204577224264283E-2,7.4343315293830578E-2,0.39870402865289478,0.29336747526406404,0.18571737671084679,0.15163500327283028,0.12868660910150839,9.335534734154928E-2,0.23011508750151069,0.16896188474476509,0.61822216844085076,0.42884875449111381,0.59117969833882456,0.53488639852625119,0.55124857983504083,0.45728925560343858,0.63775803990117197,0.54046172747923271,0.54850587051626409,0.46493025915866465,0.20257964874175249,0.13137529362551084,0.62320472899692603,0.39921290559738032]
["$","Contribution Margin",0.26735552925269079,0.43784516179511884,7.5806321960866174E-2,0.19281243597741343,0.16871426630072239,0.35554652734466297,0.25018588679599163,0.37523444170243692,0.12784617435945747,0.27495283484669841,0.44832913976924271,0.58183992524673922,0.20950111048442577,0.41866222920651863,0.16037959924979928,0.2614089803409243,0.27900242468887471,0.3879251446851848,0.20315008332524898,0.33449839428102224,0.22394628780880843,0.33890660639490161,0.46106695175387447,0.58460363525947601,0.21569910281959703,0.49555688110682061]
["$","Operating Overhead Expenses",8.1253536557469808E-2,5.7109255552026374E-2,2.0436060658621635E-2,1.445484977679993E-2,9.135963231089067E-2,7.6875202706848639E-2,2.6243693550492393E-2,2.2285286147858175E-2,1.6493838467455984E-2,1.4373798098382422E-2,5.0527533400508667E-2,2.9536912420195599E-2,5.5097733127391087E-2,4.1084430883700229E-2,3.5709180305880772E-2,3.0496343865178101E-2,3.5552877234478836E-2,2.7519039681480853E-2,3.6299106649081189E-2,3.1834305266038573E-2,6.454157724819376E-2,5.3783914291210454E-2,5.3621500005082215E-2,3.9790738911848735E-2,9.6133179773557648E-2,4.4774672569776304E-2]
["$","EBITDAR ",0.18610199269522099,0.38073590624309245,5.5370261302244539E-2,0.17835758620061351,7.7354633989831723E-2,0.2786713246378143,0.22394219324549924,0.35294915555457873,0.11135233589200148,0.26057903674831601,0.39780160636873407,0.55230301282654359,0.15440337735703469,0.3775777983228184,0.1246704189439185,0.2309126364757462,0.24344954745439587,0.36040610500370396,0.16685097667616777,0.30266408901498365,0.15940471056061467,0.28512269210369118,0.40744545174879226,0.54481289634762731,0.11956592304603939,0.45078220853704432]
["$","Annual cost of capital (ACoC)",0.26269336616552175,0.26269336616552175,4.1578803783341722E-2,3.4697328927155636E-2,0.15670929323120586,0.12764648230295453,0.11108240686080348,0.11108240686080348,7.7656612366017591E-2,7.7656612366017591E-2,0.14554363802495907,0.14427650659543123,0.10039539604594025,0.10039539604594025,0.10807809643944399,7.5599191995918066E-2,0.15725940842116906,0.14902296147240562,8.1992607035152806E-2,5.3367877648332063E-2,8.183746878765126E-2,6.8720373006011679E-2,0.23990831918478595,0.14860313423272989,0.16217200733225845,0.10081069611846855]
["$","EBIT (Operating Profit)",-7.6591373470300761E-2,0.1180425400775707,1.3791457518902817E-2,0.14366025727345788,-7.9354659241374137E-2,0.15102484233485977,0.11285978638469576,0.24186674869377525,3.3695723525983892E-2,0.18292242438229842,0.25225796834377501,0.40802650623111236,5.4007981311094438E-2,0.27718240227687818,1.659232250447451E-2,0.15531344447982814,8.6190139033226809E-2,0.21138314353129833,8.4858369641014966E-2,0.24929621136665159,7.7567241772963411E-2,0.21640231909767949,0.16753713256400632,0.39620976211489745,-4.2606084286219065E-2,0.34997151241857577]
["$","Interest Expenses",4.2604476924494122E-2,2.1228523719399699E-2,1.8162300910085305E-2,9.0858662865723073E-3,5.0428740730125973E-2,2.7528116515045688E-2,2.7864013555127024E-2,1.8283083419910067E-2,1.4464197764318386E-2,8.736283722955155E-3,6.1629379143306726E-2,5.6408708747554562E-2,1.2100182408156083E-2,6.703119128516022E-3,3.625824540452513E-2,2.3758892896818824E-2,5.2312909850680558E-2,4.5567900913246168E-2,2.7450247573345729E-2,2.0230064330727784E-2,1.5917754101962951E-2,1.1204571209678707E-2,3.0762584919700773E-2,8.7158724530604498E-3,2.2340888523525632E-2,9.5718203982121091E-3]
["$","EBT (Net Farm Income)",-0.11919585039479488,9.6814016358170996E-2,-4.3708433911824884E-3,0.13457439098688556,-0.12978339997150012,0.12349672581981408,8.4995772829568744E-2,0.2235836652738652,1.9231525761665508E-2,0.17418614065934326,0.19062858920046827,0.35161779748355781,4.1907798902938359E-2,0.27047928314836217,-1.966592290005062E-2,0.13155455158300933,3.3877229182546251E-2,0.16581524261805217,5.7408122067669237E-2,0.22906614703592382,6.1649487671000459E-2,0.20519774788800077,0.13677454764430555,0.38749388966183701,-6.4946972809744694E-2,0.34039969202036369]
[null,"Financial Ratios "]
["times interest earned","Interest Coverage",-1.2910205765970604,0.86034062586541193,-0.91003152704716195,5.5935289516693896,-1.9794459338695263,2.0857428998812337,3.2226279153098245,12.370750571296206,2.282111142256162,20.296087567923543,2.7418688613617932,6.3426971720488963,-0.66895472322685845,24.433538068342337,-0.15638938462468494,6.2696242735128234,1.7009454644469373,4.0893935210467838,0.93709386038234421,10.743755697043021,2.2479514415781487,13.763514389369767,1.7859399366217539,24.045518328547722,-1.3513493302743584,15.994127218072499]
[null,null,"% of Revenue from farming operations"]
["%","Interest Expense Ratio",4.2604476924494122E-2,2.1228523719399699E-2,1.8162300910085305E-2,9.0858662865723073E-3,5.0428740730125973E-2,2.7528116515045688E-2,2.7864013555127024E-2,1.8283083419910067E-2,1.4464197764318386E-2,8.736283722955155E-3,6.1629379143306726E-2,5.6408708747554562E-2,1.2100182408156083E-2,6.703119128516022E-3,3.625824540452513E-2,2.3758892896818824E-2,5.2312909850680558E-2,4.5567900913246168E-2,2.7450247573345729E-2,2.0230064330727784E-2,1.5917754101962951E-2,1.1204571209678707E-2,3.0762584919700773E-2,8.7158724530604498E-3,2.2340888523525632E-2,9.5718203982121091E-3]
["%","Operating Expense Ratio",1.0735553609098956,0.78453186378219064,1.0083147264228804,0.86047632586293266,1.0571074482696066,0.85444110118440597,0.86593904304962344,0.73887956629424401,0.94469385111413784,0.7978339911977439,0.72860960728782087,0.5686067431348385,0.96750784262741485,0.72474760460686438,0.93778697095058416,0.81055215299148442,0.83416245893305041,0.74463199376508671,0.90633812539047365,0.76435474274337678,0.92889499202127945,0.76781763201888087,0.79965914856169129,0.58149273230846987,1.0003911528336453,0.65313278280246423]
["%","Energy Expense Ratio",2.0498759848080344E-2,2.0498759848080344E-2,1.7313814116293993E-3,1.4578093701838634E-3,1.5625998516067999E-2,1.236633324740922E-2,2.446298767344425E-2,2.446298767344425E-2,1.0500918316935264E-2,1.0500918316935264E-2,1.908040852036199E-2,1.3650882928731203E-2,1.4121744215808141E-2,1.4121744215808141E-2,0.13135369103188022,0.11884319860812952,0.12775158303370296,0.11439228039554536,0.13529493784364366,0.10416973255088305,7.0063908592236754E-2,6.1041788429938425E-2,8.3862498263803723E-3,5.9292027955560418E-3,7.2310879374701412E-3,1.9647895857496495E-3]
["%","Labour Expense Ratio",0,0,0,1.4578093701838634E-3,1.1286273095306883E-2,3.176503068125653E-2,4.6804253738123962E-2,3.355184502266817E-2,1.0500918316935264E-2,1.097064655527976E-2,3.0901870430887581E-2,3.0901870430887581E-2,0.32049663793685462,0.21325021829364807,0.25143068038558652,0.23018318886918718,0.23370146029779953,0.11439228039554536,0.2843927470720673,0.24812650212245579,0.2823968413849966,0.223637948147652,1.7764844843198432E-3,0,0.28690812798955245,0.19017092556775855]
["%","Machinery Operating Expense ratio",0.17182541688856226,0.12217544161995941,6.7599137106949453E-2,5.7288333057459229E-2,0.19615244359895556,0.15699430657797098,8.1034976703295084E-2,6.9026844610634616E-2,7.1846040372435957E-2,4.9252554270269658E-2,0.11472165953916486,8.2851707596076934E-2,7.9833061578624798E-2,5.8000000000000003E-2,6.5846932123045224E-2,4.6099849890387588E-2,4.9433269857243868E-2,5.2552098949714285E-2,4.4716546578042526E-2,3.5240214872058903E-2,4.108465669898919E-2,3.4551065301884717E-2,0.16140476381550334,0.12378753588574158,0.17924832534059351,9.8999723607839013E-2]
[null,"Livestock"]
["%","Feed Expense Ratio",0.32273979556085747,0.21460280656107003,0.20356793174278437,0.15614529289402876,0.46009688809404903,0.34229266496350952,0.5480754979100374,0.44654635682392868,0.4509432751548374,0.33157240415561479,0.38613065624862797,0.21913132498980692]
["%","Livestock Purchases Ratio",7.6819246967921723E-2,5.0612844529747382E-2,0.6460611185687376,0.57720569978434055,1.3278537236338045E-3,6.0235722460562332E-3,1.2612812642617452E-2,5.164636755749465E-3,0.29214189617482667,0.27607043156606953,2.3713417031253859E-3,1.2291687619974409E-3]
["%","Health Expense Ratio",4.3455951522851942E-2,2.8422714711790115E-2,3.1507076462389148E-3,4.4876673282182181E-3,5.0416955938400116E-3,2.4571188245639308E-2,2.9702198156840949E-2,2.3426063088157867E-2,7.4348443188695917E-3,5.9536472133140794E-3,9.9607904069657013E-3,7.2221896764064824E-3]

{"sheet":"BenchmarksLookup","index":8,"n_rows":32,"n_cols":28,"rows_kept":32,"cut":false,"hidden":true,"merged":[]}
[null,null,"Ontario Farm Financial Analysis Summary"]
[null,null,"Benchmark Summary"]
["The Ontario Farm Financial Data Summary uses farm income and expense data to evaluate financial performance based on farm type."]
["The income and expense data used comes from selected Ontario farm businesses participating in business risk management programs."]
["Financial Measure and Ratio values are the median of the sample."]
[null,"Farm types","Beef cow calf","Beef feedlot","Sheep","Swine Farrow to Finish","Swine Finishing","Dairy Goat","Apple","Greenhouse cucumber","Greenhouse pepper","Greenhouse tomato","Greenhouse flower","Field crops","Grapes","Beef cow calf","Beef feedlot","Sheep","Swine Farrow to Finish","Swine Finishing","Dairy Goat","Apple","Greenhouse cucumber","Greenhouse pepper","Greenhouse tomato","Greenhouse flower","Field crops","Grapes"]
[null,null,"All","All","All","All","All","All","All","All","All","All","All","All","All","Top","Top","Top","Top","Top","Top","Top","Top","Top","Top","Top","Top","Top"]
[]
[null,"Financial Measures","$ of Revenue from farming operations"]
["$","Revenue from farming operations",1,1,1,1,1,1,1,1,1,1,1,1,1,1,1,1,1,1,1,1,1,1,1,1,1,1]
["$","Cost of goods sold",0.41054322048141023,0.83298910081486954,0.43258170504638283,0.56409673649316161,0.74346721653903414,0.32155577272924657,0.17227672107472347,0.24844070241137622,0.16974899547608441,0.15909187677357908,0.22754784167492748,0.33635339950437304,0.16109616818347694,0.32465948738237743,0.73284424872875598,0.35108599739127305,0.47313055502473278,0.63169181781175232,0.24919819000849575,0.15248901630236761,0.20370462113282453,0.15478559971137659,0.12503987823974511,0.19616313444643377,0.28402107111501318,0.10523021329579904]
["$","Gross Margin",0.58945677951858977,0.16701089918513046,0.56741829495361717,0.43590326350683839,0.25653278346096586,0.67844422727075337,0.82772327892527653,0.75155929758862383,0.83025100452391554,0.84090812322642094,0.77245215832507252,0.66364660049562696,0.83890383181652306,0.67534051261762262,0.26715575127124402,0.648914002608727,0.52686944497526722,0.36830818218824768,0.75080180999150425,0.84751098369763245,0.7962953788671755,0.84521440028862338,0.87496012176025495,0.80383686555356626,0.71597892888498682,0.89476978670420093]
["$","Direct Operating Expenses",0.32210125026589898,9.1204577224264283E-2,0.39870402865289478,0.18571737671084679,0.12868660910150839,0.23011508750151069,0.61822216844085076,0.59117969833882456,0.55124857983504083,0.63775803990117197,0.54850587051626409,0.20257964874175249,0.62320472899692603,0.23749535082250378,7.4343315293830578E-2,0.29336747526406404,0.15163500327283028,9.335534734154928E-2,0.16896188474476509,0.42884875449111381,0.53488639852625119,0.45728925560343858,0.54046172747923271,0.46493025915866465,0.13137529362551084,0.39921290559738032]
["$","Contribution Margin",0.26735552925269079,7.5806321960866174E-2,0.16871426630072239,0.25018588679599163,0.12784617435945747,0.44832913976924271,0.20950111048442577,0.16037959924979928,0.27900242468887471,0.20315008332524898,0.22394628780880843,0.46106695175387447,0.21569910281959703,0.43784516179511884,0.19281243597741343,0.35554652734466297,0.37523444170243692,0.27495283484669841,0.58183992524673922,0.41866222920651863,0.2614089803409243,0.3879251446851848,0.33449839428102224,0.33890660639490161,0.58460363525947601,0.49555688110682061]
["$","Operating Overhead Expenses",8.1253536557469808E-2,2.0436060658621635E-2,9.135963231089067E-2,2.6243693550492393E-2,1.6493838467455984E-2,5.0527533400508667E-2,5.5097733127391087E-2,3.5709180305880772E-2,3.5552877234478836E-2,3.6299106649081189E-2,6.454157724819376E-2,5.3621500005082215E-2,9.6133179773557648E-2,5.7109255552026374E-2,1.445484977679993E-2,7.6875202706848639E-2,2.2285286147858175E-2,1.4373798098382422E-2,2.9536912420195599E-2,4.1084430883700229E-2,3.0496343865178101E-2,2.7519039681480853E-2,3.1834305266038573E-2,5.3783914291210454E-2,3.9790738911848735E-2,4.4774672569776304E-2]
["$","EBITDAR ",0.18610199269522099,5.5370261302244539E-2,7.7354633989831723E-2,0.22394219324549924,0.11135233589200148,0.39780160636873407,0.15440337735703469,0.1246704189439185,0.24344954745439587,0.16685097667616777,0.15940471056061467,0.40744545174879226,0.11956592304603939,0.38073590624309245,0.17835758620061351,0.2786713246378143,0.35294915555457873,0.26057903674831601,0.55230301282654359,0.3775777983228184,0.2309126364757462,0.36040610500370396,0.30266408901498365,0.28512269210369118,0.54481289634762731,0.45078220853704432]
["$","Annual cost of capital (ACoC)",0.26269336616552175,4.1578803783341722E-2,0.15670929323120586,0.11108240686080348,7.7656612366017591E-2,0.14554363802495907,0.10039539604594025,0.10807809643944399,0.15725940842116906,8.1992607035152806E-2,8.183746878765126E-2,0.23990831918478595,0.16217200733225845,0.26269336616552175,3.4697328927155636E-2,0.12764648230295453,0.11108240686080348,7.7656612366017591E-2,0.14427650659543123,0.10039539604594025,7.5599191995918066E-2,0.14902296147240562,5.3367877648332063E-2,6.8720373006011679E-2,0.14860313423272989,0.10081069611846855]
["$","EBIT (Operating Profit)",-7.6591373470300761E-2,1.3791457518902817E-2,-7.9354659241374137E-2,0.11285978638469576,3.3695723525983892E-2,0.25225796834377501,5.4007981311094438E-2,1.659232250447451E-2,8.6190139033226809E-2,8.4858369641014966E-2,7.7567241772963411E-2,0.16753713256400632,-4.2606084286219065E-2,0.1180425400775707,0.14366025727345788,0.15102484233485977,0.24186674869377525,0.18292242438229842,0.40802650623111236,0.27718240227687818,0.15531344447982814,0.21138314353129833,0.24929621136665159,0.21640231909767949,0.39620976211489745,0.34997151241857577]
["$","Interest Expenses",4.2604476924494122E-2,1.8162300910085305E-2,5.0428740730125973E-2,2.7864013555127024E-2,1.4464197764318386E-2,6.1629379143306726E-2,1.2100182408156083E-2,3.625824540452513E-2,5.2312909850680558E-2,2.7450247573345729E-2,1.5917754101962951E-2,3.0762584919700773E-2,2.2340888523525632E-2,2.1228523719399699E-2,9.0858662865723073E-3,2.7528116515045688E-2,1.8283083419910067E-2,8.736283722955155E-3,5.6408708747554562E-2,6.703119128516022E-3,2.3758892896818824E-2,4.5567900913246168E-2,2.0230064330727784E-2,1.1204571209678707E-2,8.7158724530604498E-3,9.5718203982121091E-3]
["$","EBT (Net Farm Income)",-0.11919585039479488,-4.3708433911824884E-3,-0.12978339997150012,8.4995772829568744E-2,1.9231525761665508E-2,0.19062858920046827,4.1907798902938359E-2,-1.966592290005062E-2,3.3877229182546251E-2,5.7408122067669237E-2,6.1649487671000459E-2,0.13677454764430555,-6.4946972809744694E-2,9.6814016358170996E-2,0.13457439098688556,0.12349672581981408,0.2235836652738652,0.17418614065934326,0.35161779748355781,0.27047928314836217,0.13155455158300933,0.16581524261805217,0.22906614703592382,0.20519774788800077,0.38749388966183701,0.34039969202036369]
[null,"Financial Ratios "]
["times interest earned","Interest Coverage",-1.2910205765970604,-0.91003152704716195,-1.9794459338695263,3.2226279153098245,2.282111142256162,2.7418688613617932,-0.66895472322685845,-0.15638938462468494,1.7009454644469373,0.93709386038234421,2.2479514415781487,1.7859399366217539,-1.3513493302743584,0.86034062586541193,5.5935289516693896,2.0857428998812337,12.370750571296206,20.296087567923543,6.3426971720488963,24.433538068342337,6.2696242735128234,4.0893935210467838,10.743755697043021,13.763514389369767,24.045518328547722,15.994127218072499]
[null,null,"% of Revenue from farming operations"]
["%","Interest Expense Ratio",4.2604476924494122E-2,1.8162300910085305E-2,5.0428740730125973E-2,2.7864013555127024E-2,1.4464197764318386E-2,6.1629379143306726E-2,1.2100182408156083E-2,3.625824540452513E-2,5.2312909850680558E-2,2.7450247573345729E-2,1.5917754101962951E-2,3.0762584919700773E-2,2.2340888523525632E-2,2.1228523719399699E-2,9.0858662865723073E-3,2.7528116515045688E-2,1.8283083419910067E-2,8.736283722955155E-3,5.6408708747554562E-2,6.703119128516022E-3,2.3758892896818824E-2,4.5567900913246168E-2,2.0230064330727784E-2,1.1204571209678707E-2,8.7158724530604498E-3,9.5718203982121091E-3]
["%","Operating Expense Ratio",1.0735553609098956,1.0083147264228804,1.0571074482696066,0.86593904304962344,0.94469385111413784,0.72860960728782087,0.96750784262741485,0.93778697095058416,0.83416245893305041,0.90633812539047365,0.92889499202127945,0.79965914856169129,1.0003911528336453,0.78453186378219064,0.86047632586293266,0.85444110118440597,0.73887956629424401,0.7978339911977439,0.5686067431348385,0.72474760460686438,0.81055215299148442,0.74463199376508671,0.76435474274337678,0.76781763201888087,0.58149273230846987,0.65313278280246423]
["%","Energy Expense Ratio",2.0498759848080344E-2,1.7313814116293993E-3,1.5625998516067999E-2,2.446298767344425E-2,1.0500918316935264E-2,1.908040852036199E-2,1.4121744215808141E-2,0.13135369103188022,0.12775158303370296,0.13529493784364366,7.0063908592236754E-2,8.3862498263803723E-3,7.2310879374701412E-3,2.0498759848080344E-2,1.4578093701838634E-3,1.236633324740922E-2,2.446298767344425E-2,1.0500918316935264E-2,1.3650882928731203E-2,1.4121744215808141E-2,0.11884319860812952,0.11439228039554536,0.10416973255088305,6.1041788429938425E-2,5.9292027955560418E-3,1.9647895857496495E-3]
["%","Labour Expense Ratio",0,0,1.1286273095306883E-2,4.6804253738123962E-2,1.0500918316935264E-2,3.0901870430887581E-2,0.32049663793685462,0.25143068038558652,0.23370146029779953,0.2843927470720673,0.2823968413849966,1.7764844843198432E-3,0.28690812798955245,0,1.4578093701838634E-3,3.176503068125653E-2,3.355184502266817E-2,1.097064655527976E-2,3.0901870430887581E-2,0.21325021829364807,0.23018318886918718,0.11439228039554536,0.24812650212245579,0.223637948147652,0,0.19017092556775855]
["%","Machinery Operating Expense ratio",0.17182541688856226,6.7599137106949453E-2,0.19615244359895556,8.1034976703295084E-2,7.1846040372435957E-2,0.11472165953916486,7.9833061578624798E-2,6.5846932123045224E-2,4.9433269857243868E-2,4.4716546578042526E-2,4.108465669898919E-2,0.16140476381550334,0.17924832534059351,0.12217544161995941,5.7288333057459229E-2,0.15699430657797098,6.9026844610634616E-2,4.9252554270269658E-2,8.2851707596076934E-2,5.8000000000000003E-2,4.6099849890387588E-2,5.2552098949714285E-2,3.5240214872058903E-2,3.4551065301884717E-2,0.12378753588574158,9.8999723607839013E-2]
[null,"Livestock"]
["%","Feed Expense Ratio",0.32273979556085747,0.20356793174278437,0.46009688809404903,0.5480754979100374,0.4509432751548374,0.38613065624862797,null,null,null,null,null,null,null,0.21460280656107003,0.15614529289402876,0.34229266496350952,0.44654635682392868,0.33157240415561479,0.21913132498980692]
["%","Livestock Purchases Ratio",7.6819246967921723E-2,0.6460611185687376,1.3278537236338045E-3,1.2612812642617452E-2,0.29214189617482667,2.3713417031253859E-3,null,null,null,null,null,null,null,5.0612844529747382E-2,0.57720569978434055,6.0235722460562332E-3,5.164636755749465E-3,0.27607043156606953,1.2291687619974409E-3]
["%","Health Expense Ratio",4.3455951522851942E-2,3.1507076462389148E-3,5.0416955938400116E-3,2.9702198156840949E-2,7.4348443188695917E-3,9.9607904069657013E-3,null,null,null,null,null,null,null,2.8422714711790115E-2,4.4876673282182181E-3,2.4571188245639308E-2,2.3426063088157867E-2,5.9536472133140794E-3,7.2221896764064824E-3]